{"text_format":"1","workbook":"xlsx","n_sheets":4,"sheets":["TECHO","TABLAS","PLANO","Hoja1"],"not_rendered":{"charts":0,"images":3,"macros":1,"external_links":0,"defined_names":11,"comments":1,"pivot_tables":0},"unopened":[],"bounds":{"document_bytes":16777216,"sheet_cells":100000,"rows_first":2000,"rows_last":500,"rows_between":2000,"halvings":0,"cell_chars":16384,"cell_head_chars":4096},"cells_cut":0,"cells_raw":0,"read":"whole","date_system":"1900"}

{"sheet":"TECHO","index":0,"n_rows":144,"n_cols":9,"rows_kept":144,"cut":false,"hidden":false,"merged":[[141,1,141,2],[141,3,141,4],[141,5,141,6],[5,2,7,2],[137,3,137,4],[137,5,137,6],[139,3,139,4],[139,5,139,6],[140,3,140,4],[140,5,140,6],[138,3,138,4],[138,5,138,6],[134,5,134,6],[135,5,135,6],[136,5,136,6],[133,5,133,6],[133,3,133,4],[134,3,134,4],[135,3,135,4],[136,3,136,4],[129,5,129,6],[130,5,130,6],[131,5,131,6],[132,5,132,6],[129,3,129,4],[130,3,130,4],[131,3,131,4],[132,3,132,4],[125,3,125,4],[126,3,126,4],[127,3,127,4],[128,3,128,4],[120,5,120,6],[121,5,121,6],[125,5,125,6],[126,5,126,6],[127,5,127,6],[128,5,128,6],[120,3,120,4],[121,3,121,4],[122,3,122,4],[123,3,123,4],[122,5,122,6],[123,5,123,6],[124,3,124,4],[124,5,124,6],[119,3,119,4],[119,5,119,6],[115,3,115,4],[116,3,116,4],[117,3,117,4],[118,3,118,4],[115,5,115,6],[116,5,116,6],[117,5,117,6],[118,5,118,6],[114,3,114,4],[113,5,113,6],[114,5,114,6],[109,3,109,4],[110,3,110,4],[111,3,111,4],[112,3,112,4],[113,3,113,4],[109,5,109,6],[110,5,110,6],[111,5,111,6],[112,5,112,6],[104,3,104,4],[105,3,105,4],[106,3,106,4],[107,3,107,4],[108,3,108,4],[104,5,104,6],[105,5,105,6],[106,5,106,6],[107,5,107,6],[108,5,108,6],[102,3,102,4],[103,3,103,4],[102,5,102,6],[103,5,103,6],[98,5,98,6],[99,5,99,6],[100,5,100,6],[101,3,101,4],[101,5,101,6],[93,5,93,6],[94,5,94,6],[95,5,95,6],[96,5,96,6],[97,5,97,6],[98,3,98,4],[99,3,99,4],[100,3,100,4],[93,3,93,4],[94,3,94,4],[95,3,95,4],[96,3,96,4],[97,3,97,4],[78,5,78,6],[79,5,79,6],[89,5,89,6],[90,5,90,6],[91,5,91,6],[84,5,84,6],[85,5,85,6],[86,5,86,6],[87,5,87,6],[88,5,88,6],[80,5,80,6],[81,5,81,6],[82,5,82,6],[83,5,83,6],[92,5,92,6],[79,3,79,4],[80,3,80,4],[81,3,81,4],[82,3,82,4],[83,3,83,4],[74,3,74,4],[75,3,75,4],[76,3,76,4],[77,3,77,4],[78,3,78,4],[89,3,89,4],[90,3,90,4],[91,3,91,4],[92,3,92,4],[84,3,84,4],[85,3,85,4],[86,3,86,4],[87,3,87,4],[88,3,88,4],[74,5,74,6],[75,5,75,6],[76,5,76,6],[77,5,77,6],[70,3,70,4],[70,5,70,6],[71,3,71,4],[72,3,72,4],[73,3,73,4],[68,3,68,4],[69,3,69,4],[64,5,64,6],[65,5,65,6],[66,5,66,6],[67,5,67,6],[68,5,68,6],[69,5,69,6],[64,3,64,4],[65,3,65,4],[66,3,66,4],[67,3,67,4],[71,5,71,6],[72,5,72,6],[73,5,73,6],[62,3,62,4],[63,3,63,4],[62,5,62,6],[63,5,63,6],[55,5,55,6],[56,5,56,6],[57,5,57,6],[58,5,58,6],[59,5,59,6],[60,3,60,4],[61,3,61,4],[55,3,55,4],[56,3,56,4],[57,3,57,4],[58,3,58,4],[59,3,59,4],[36,5,36,6],[37,5,37,6],[38,5,38,6],[39,5,39,6],[40,5,40,6],[41,5,41,6],[60,5,60,6],[61,5,61,6],[31,5,31,6],[51,5,51,6],[52,5,52,6],[53,5,53,6],[54,5,54,6],[46,5,46,6],[47,5,47,6],[48,5,48,6],[49,5,49,6],[50,5,50,6],[32,5,32,6],[42,5,42,6],[43,5,43,6],[44,5,44,6],[45,5,45,6],[51,3,51,4],[52,3,52,4],[53,3,53,4],[54,3,54,4],[46,3,46,4],[47,3,47,4],[48,3,48,4],[49,3,49,4],[50,3,50,4],[41,3,41,4],[42,3,42,4],[43,3,43,4],[44,3,44,4],[45,3,45,4],[36,3,36,4],[37,3,37,4],[38,3,38,4],[39,3,39,4],[40,3,40,4],[31,3,31,4],[32,3,32,4],[33,3,33,4],[34,3,34,4],[35,3,35,4],[30,3,30,4],[25,5,25,6],[26,5,26,6],[27,5,27,6],[28,5,28,6],[26,3,26,4],[27,3,27,4],[28,3,28,4],[29,3,29,4],[33,5,33,6],[34,5,34,6],[35,5,35,6],[29,5,29,6],[30,5,30,6],[25,3,25,4],[20,3,20,4],[21,3,21,4],[11,3,11,4],[20,5,20,6],[21,5,21,6],[22,5,22,6],[23,5,23,6],[24,5,24,6],[22,3,22,4],[23,3,23,4],[24,3,24,4],[12,3,12,4],[101,1,101,2],[17,1,17,2],[140,1,140,2],[119,1,119,2],[128,1,128,2],[133,1,133,2],[137,1,137,2],[139,1,139,2],[20,1,21,1],[20,2,21,2],[31,1,31,2],[70,1,70,2],[18,1,18,2],[10,3,10,4],[13,3,13,4],[14,3,14,4],[15,3,15,4],[16,3,16,4],[17,3,17,4],[18,3,18,4],[1,1,1,5],[9,3,9,4],[9,5,9,6],[9,2,10,2],[9,1,10,1],[3,3,3,6]]}
[]
[null,"TECHO PRESUPUESTARIO GESTION 2021\n CON RECURSOS INSTITUCIONALES Y FONDOS PROPIOS"]
[]
[null,"APERTURA ",null,"TECHO ASIGNADO"]
[]
[null,"DESCRIPCION ",null,"INSTITUCIONAL",null,"FONDOS PROPIOS"]
[]
[null,null,null,"UNID. EJECUTORA",{"$f":"IF(monto=0,\"\",\"SIC\")","v":""},"UNID. EJECUTORA",{"$f":"IFERROR(VLOOKUP(C4,cod_unidad,2,FALSE),\"\")","v":""}]
[]
[null,"RUBRO DE INGRESO","DESCRIPCION ","INSTITUCIONAL",null,"FONDOS PROPIOS "]
[null,null,null,"201-230",null,"202-230","Auxiliar",null,0]
[null,15990,"Otros Ingresos no Especificados"]
[null,18111,"Monetizables"]
[null,18112,"No Monetizables"]
[null,35110,"Disminución de Caja y Bancos"]
[null,35410,"Rec. Dev. no Cobrados por Ctas por Cobrar de Corto Plazo",null,null,null,{"$f":"IF(F16=\"\",\"\",\".............\")","v":""}]
[null,35420,"Rec. Dev. no Cob. por Doc.xCobrar y Ot.Activos Fin. a CP",null,null,null,{"$f":"IF(F17=\"\",\"\",\".............\")","v":""}]
[null,"Total Ingresos",null,{"$f":"SUM(D12:D17)","v":0},null,{"$f":"SUM(F12:F17)","v":0},null,null,{"$f":"SUM(I12:I14)","v":0}]
[null,"DEFICIT INGRESOS",null,{"$f":"E6-D18","v":0},null,{"$f":"G6-F18","v":0}]
[]
[null,"OBJETO DEL GASTO","DESCRIPCION ","INSTITUCIONAL",null,"FONDOS PROPIOS"]
[null,null,null,"201-230",null,"202-230"]
[null,11220,"Otras Instituciones"]
[null,11400,"Aguinaldos"]
[null,11600,"Asignaciones Familiares"]
[null,11700,"Sueldos"]
[null,12100,"Personal Eventual"]
[null,13110,"Regimen de Corto Plazo (Salud)",{"$f":"IF(ROUND((($D$27+$D$26+$D$23)*0.1),0)=0,\"\",ROUND((($D$27+$D$26+$D$23)*0.1),0))","v":""},null,{"$f":"IF(ROUND(($F$27+$F$26+$F$23)*0.1,0)=0,\"\",ROUND(($F$27+$F$26+$F$23)*0.1,0))","v":""}]
[null,13120,"Prima de Riesgo Profesional - Regimen de Largo  Plazo",{"$f":"IF(ROUND((($D$27+$D$26+$D$23)*0.0171),0)=0,\"\",ROUND((($D$27+$D$26+$D$23)*0.0171),0))","v":""},null,{"$f":"IF(ROUND(($F$27+$F$26+$F$23)*0.0171,0)=0,\"\",ROUND(($F$27+$F$26+$F$23)*0.0171,0))","v":""}]
[null,13131,"Aporte Patronal Solidario 3%",{"$f":"IF(ROUND((($D$27+$D$26+$D$23)*0.03),0)=0,\"\",ROUND((($D$27+$D$26+$D$23)*0.03),0))","v":""},null,{"$f":"IF(ROUND(($F$27+$F$26+$F$23)*0.03,0)=0,\"\",ROUND(($F$27+$F$26+$F$23)*0.03,0))","v":""}]
[null,13200,"Aporte Patronal para Vivienda",{"$f":"IF(ROUND((($D$27+$D$26+$D$23)*0.02),0)=0,\"\",ROUND((($D$27+$D$26+$D$23)*0.02),0))","v":""},null,{"$f":"IF(ROUND((($F$27+$F$26+$F$23)*0.02),0)=0,\"\",ROUND((($F$27+$F$26+$F$23)*0.02),0))","v":""}]
[null,"GRUPO 10000",null,{"$f":"SUM(D26:D31)","v":0},null,{"$f":"SUM(F23:F31)","v":0}]
[null,21100,"Comunicaciones"]
[null,21200,"Energía eléctrica"]
[null,21300,"Agua"]
[null,21400,"Telefonía"]
[null,21500,"Gas domiciliario"]
[null,21600,"Internet"]
[null,22110,"Pasajes al interior del país"]
[null,22120,"Pasajes al exterior del país"]
[null,22210,"Viáticos por viajes al interior del país"]
[null,22220,"Viáticos por viajes al exterior del país"]
[null,22300,"Fletes y almacenamiento"]
[null,22400,"Gastos de instalación y retorno"]
[null,22500,"Seguros"]
[null,22600,"Transporte de personal"]
[null,23100,"Alquiler de inmuebles"]
[null,23200,"Alquiler de equipos y maquinarias"]
[null,23300,"Alquiler de tierras y terrenos"]
[null,23400,"Otros alquileres"]
[null,24110,"Mantenimiento y reparación de inmuebles"]
[null,24120,"Mantenimiento y reparación de vehiculos, maquinaria y equipos"]
[null,24130,"Mantenimiento y reparación de muebles y enseres"]
[null,24200,"Mantenimiento y reparación de vías de comunicación"]
[null,24300,"Otros gastos por concepto de inst., mantenimiento y reparación"]
[null,25210,"Consultorías por producto"]
[null,25220,"Consultores individuales de ínea"]
[null,25300,"Comisiones y gastos bancarios"]
[null,25400,"Lavandería, limpieza e higiene"]
[null,25500,"Publicidad"]
[null,25600,"Servicios de imprenta,fotocopiado y fotográficos"]
[null,25700,"Capacitación del personal"]
[null,25810,"Consultorías por producto"]
[null,25820,"Consultores de línea"]
[null,25900,"Servicios manuales"]
[null,26200,"Gastos judiciales"]
[null,26300,"Derechos sobre bienes intangibles"]
[null,26620,"Servicios privados"]
[null,26910,"Gastos de representación"]
[null,26990,"Otros"]
[null,"GRUPO 20000",null,{"$f":"SUM(D33:D70)","v":0},null,{"$f":"SUM(F33:F70)","v":0}]
[null,31110,"Gastos por refrigerios al personal permanente, eventual y consultores"]
[null,31120,"Gastos por alimentación y otros similares"]
[null,31200,"Alimentos para animales"]
[null,31300,"Productos agrícolas, pecuarios y forestales"]
[null,32100,"Papel"]
[null,32200,"Productos de artes graficas, papel y cartón"]
[null,32300,"Libros manuales y revistas"]
[null,32400,"Textos de enseñanza"]
[null,32500,"Periódicos"]
[null,33100,"Hilados, telas, fibras y algodón"]
[null,33200,"Confecciones textiles"]
[null,33300,"Prendas de vestir"]
[null,33400,"Calzados"]
[null,34110,"Combustibles, lubricantes y derivados para consumo"]
[null,34200,"Productos químicos y farmacéuticos"]
[null,34300,"Llantas y neumáticos"]
[null,34400,"Productos de cuero y caucho"]
[null,34500,"Productos de minerales no metálicos y plásticos"]
[null,34600,"Productos metálicos"]
[null,34700,"Minerales"]
[null,34800,"Herramientas menores"]
[null,39100,"Material de limpieza e higiene"]
[null,39200,"Material deportivo y recreativo"]
[null,39300,"Utensilios de cocina y comedor"]
[null,39400,"Instrumental menor médico-quirúrgico"]
[null,39500,"Útiles de escritorio y oficina"]
[null,39600,"Útiles educacionales, culturales y de capacitación"]
[null,39700,"Útiles y materiales eléctricos"]
[null,39800,"Otros repuestos y accesorios"]
[null,39990,"Otros materiales y suministros"]
[null,"GRUPO 30000",null,{"$f":"SUM(D72:D101)","v":0},null,{"$f":"SUM(F72:F101)","v":0}]
[null,42230,"Otras const. y mejoras de bienes públicos de dominio privado"]
[null,42240,"Superv. de const. y mejoras de bienes públicos de dominio privado"]
[null,43110,"Equipo de oficina y muebles"]
[null,43120,"Equipo de computación"]
[null,43200,"Maquinaria y equipo de producción"]
[null,43310,"Vehículos livianos para funciones administrativas"]
[null,43320,"Vehículos livianos para proyectos de inversión publica"]
[null,43330,"Maquinaria y equipo de transporte"]
[null,43340,"Equipo de elevación"]
[null,43400,"Equipo médico y de laboratorio"]
[null,43500,"Equipo de comunicaciones"]
[null,43600,"Equipo educacional y recreativo"]
[null,43700,"Otra maquinaria y equipo"]
[null,49100,"Activos intangibles"]
[null,49300,"Semovientes y otros animales"]
[null,49400,"Activos museológicos y culturales"]
[null,49900,"Otros activos fijos"]
[null,"GRUPO 40000",null,{"$f":"SUM(D103:D119)","v":0},null,{"$f":"SUM(F103:F119)","v":0}]
[null,66100,"Gastos devengados no pagados por servicios personales"]
[null,66210,"Gastos dev. no pagados por serv. no personales"]
[null,66220,"Gastos dev. no pagados por mat. y suministros"]
[null,66230,"Gastos dev. no pagados por activos reales"]
[null,66240,"Gastos Devengados no pagado por activos financieros"]
[null,66400,"Gastos devengados no pagados por retenciones"]
[null,66900,"Otros gastos no pagados"]
[null,68200,"Pago de beneficios sociales"]
[null,"GRUPO 60000",null,{"$f":"SUM(D121:D128)","v":0},null,{"$f":"SUM(F121:F128)","v":0}]
[null,71220,"Becas de estudio, otorgadas a los estudiantes universitarios"]
[null,71300,"Donaciones, ayudas sociales y premios a personas"]
[null,71610,"A personas e inst.privadas sin fines de lucro"]
[null,73100,"Transf. corrientes a la adm. central por subsidios o subvención"]
[null,"GRUPO 70000",null,{"$f":"SUM(D130:D133)","v":0},null,{"$f":"SUM(F130:F133)","v":0}]
[null,83210,"Bienes Inmuebles"]
[null,85100,"Tasas"]
[null,85200,"Derechos"]
[null,"GRUPO 80000",null,{"$f":"SUM(D135:D137)","v":0},null,{"$f":"SUM(F135:F137)","v":0}]
[null,96200,"Devoluciones"]
[null,"GRUPO 90000",null,{"$f":"SUM(D139:D139)","v":0},null,{"$f":"SUM(F139:F139)","v":0}]
[null,"TOTAL GASTOS",null,{"$f":"+D140+D138+D134+D129+D120+D102+D71+D32","v":0},null,{"$f":"+F140+F138+F134+F129+F120+F102+F71+F32","v":0}]
[null,"DEFICIT GASTOS",null,{"$f":"E6-D141","v":0},null,{"$f":"G6-F141","v":0}]
[null,"201 - 230","Institucional"]
[null,"202 - 230","Fondos Propios"]

{"sheet":"TABLAS","index":1,"n_rows":1174,"n_cols":13,"rows_kept":1174,"cut":false,"hidden":true,"merged":[]}
[null,"AP","des_apertura2",null,"UNIDADES EJECUTORAS",null,null,null,"techo","monto",null,"AUXILIARES DE INGRESOS 2017"]
[null,"00000011","OFICINA RECTORADO",null,"D01","UNIDAD C.I.M.A.R ","13000061","D01","00000011",1721839,null,"Saldos de caja y banco",35110]
[null,"00000014","AUTOEVALUACION Y ACREDITACION O.U.A.A.",null,"D02","UNIDAD MUSEO H.N.N.K.M.","99000001","D01","00000014",2805,null,"Rec. Dev. Ctas por cobrar",35410]
[null,"00000016","UNIDAD DE PROYECTO",null,"F01","I.N.E.G.A.S. ","13000013","D02","00000019",1139,null,"Rec. Dev. Docum. Por cobrar",35420]
[null,"00000019","EVALUACION EXTERNA Y ACREDITACION",null,"F05","UNIDAD FAC. INTEGRAL DEL NORTE ","13130200","D02","00000021",31435,null,"Recursos facultativos","5490001000000"]
[null,"00000021","OFICINA PLANIFICACION",null,"F06","UNIDAD FAC. CONTADURIA ","99000001","D02","00000023",1955,null,"Prog. Especiales de titulación","5490001000001"]
[null,"00000022","I.N.E.G.A.S.",null,"F07","UNIDAD FAC. CS. DEL HABITAD ","00000022","D03","00000024",7285,null,"Cursos de verano","5490001000002"]
[null,"00000023","UDES - UNIDAD DE DESARR. DE LA EDUCACION SUPERIOR",null,"F08","UNIDAD FAC. DE HUMANIDADES ","99000001","D03","00000031",37742,null,"Mesa examinadora","5490001000003"]
[null,"00000024","DPTO. DE ORGANIZACION Y METODOS",null,"F09","UNIDAD FAC. CS. DE LA SALUD ","00000022","F01","00000041",255253,null,"Aporte facultativo","5490001000004"]
[null,"00000031","OFICINA AUDITORIA INTERNA",null,"F10","UNIDAD FAC. DE CS. POLITICAS ","99000001","F01","00000061",358380,null,"Servicios de laboratorios","5490001000005"]
[null,"00000041","OFICINA ASESORIA LEGAL",null,"F11","UNIDAD FAC. DE CS. ECONOMICAS ","05000011","F05","00000062",13393,null,"Servicios de consultoría","5490001000006"]
[null,"00000061","OFICINA SECRETARIA GENERAL",null,"F12","UNIDAD FAC. DE VETERINARIA ","05000013","F05","00000064",29946,null,"Aporte por traspasos y cambios de carrera","5490001000007"]
[null,"00000062","ARCHIVOS",null,"F13","UNIDAD FAC. DE CS. AGRICOLAS ","05000015","F05","00000066",77350,null,"Otros servicios","5490001000008"]
[null,"00000064","OFICINA DE TITULOS",null,"F14","UNIDAD FAC. DE TEGNOLOGIA ","05000022","F05","00000067",9067,null,"Postgrado","5490001000009"]
[null,"00000066","OFIC. RELACIONES NACIONALES E INTERNACIONALES",null,"F15","FACULTAD POLITECNICA SANTA CRUZ ","05000023","F05","00000092",68000,null,"Doctorado","5490001000010"]
[null,"00000067","ESCALAFON DOCENTE",null,"F16","FACULTAD INTEGRAL DEL CHACO - CAMIRI ","05000024","F05","01000011",723350,null,"Maestría","5490001000011"]
[null,"00000081","OFICINA CENTRO DE PROCESAMIENTO DE DATOS",null,"F26","UNIDAD FAC. INTEGRAL DE ICHILO ","05000025","F05","01000021",90270,null,"Diplomado","5490001000012"]
[null,"00000091","OFICINA PARANINFO UNIVERSITARIO",null,"F28","UNIDAD FAC. CS.FARMACEUTICAS Y BIOQ. ","05000026","F05","01000034",1183064,null,"Especialidad","5490001000013"]
[null,"00000092","EDITORIAL UNIVERSITARIA",null,"F29","UNIDAD FAC.INGEN.CS.DE COMPUT.Y TELECOM.","05000027","F05","01000041",120724,null,"Estudio fotográfico carr.comunic.","5490001000014"]
[null,"01000011","OFICINA DIRECCION ADMINISTRATIVA Y FINANCIERA",null,"U18","CANAL 11 - ","05000028","F05","01000043",12750,null,"Comunicación a distancia","5490001000015"]
[null,"01000014","UNIDAD DE EMPRESAS",null,"U19","UNI.DES. CENTRO DE INV. EL PRADO ","05000029","F05","01000051",106003,null,"Educación a distancia","5490001000016"]
[null,"01000021","OFICINA RECURSOS HUMANOS",null,"U20","INSTITUTO DE INVS. \"EL VALLECITO\" ","05000031","F05","01000052",155769,null,"Cursos autofinanciados","5490001000017"]
[null,"01000022","REGISTRO Y CONTROL DE RECURSOS HUMANOS",null,"U21","UNI.DES. HOSPITAL PARA ANIMALES ","05000046","F05","01000054",193898,null,"Devolución por inf.de contraloría","5490001000018"]
[null,"01000023","SUELDOS Y SALARIOS",null,"U22","PMGB PROYECTO DE MEJORAMIENTO GEN.BOVINO ","99000001","F05","01000061",107167,null,"Deposito emergente de resp. Civil segun c.i. audit","5490001000019"]
[null,"01000033","VEHICULOS Y MAESTRANZAS",null,"U23","CENTRO DE INVESTIG. Y DESARROLLO TECNG. ","06000011","F06","01000071",795374,null,"Devol. Contraloría inf. CGE/Drc-010/2013","5490001000020"]
[null,"01000034","DPTO. INFRAESTRUCTURA Y EQUIP. UNIVER. - D.I.E.U.",null,"UTB","UTALAB ","06000013","F06","01000081",34000,null,"Servicio de consulta externa","5490001000021"]
[null,"01000035","DPTO. MANTENIMIENTO Y MEJORAMIENTO UNIV.-D.M.M.U.",null,"SIC","SISTEMA INTEGRADO DE CONTABILIDAD","06000021","F06","02000011",247865,null,"Depósitos no identificados","5490001000022"]
[null,"01000041","OFICINA SUMINISTROS",null,null,null,"06000031","F06","02000021",13204,null,"Tesis de grado","5490001000023"]
[null,"01000043","ALMACENES",null,null,null,"66112000","F06","02000022",2134,null,"Trabajo dirigido","5490001000024"]
[null,"01000051","OFICINA FINANZAS",null,null,null,"66112300","F06","02000023",2485995,null,"Seminario de grado","5490001000025"]
[null,"01000052","CONTABILIDAD",null,null,null,"66112400","F06","02000026",4250,null,"Venta de bovino","5490001000026"]
[null,"01000054","TESORERIA",null,null,null,"99000001","F06","02000031",57684,null,"Venta de equinos","5490001000027"]
[null,"01000061","OFICINA PRESUPUESTO",null,null,null,"07000011","F07","02000041",171291,null,"Venta de caprinos","5490001000028"]
[null,"01000071","OFICINA DE ACTIVOS FIJOS",null,null,null,"07000013","F07","02000043",1700,null,"Venta de caprinos","5490001000029"]
[null,"01000081","ADMIN. DE SERVICIOS UNIVERSITARIOS (PREDIOS)",null,null,null,"07000021","F07","02000047",14280,null,"Residencias","5490001000030"]
[null,"02000011","OFICINA VICERRECTORADO",null,null,null,"07000031","F07","02000051",36932,null,"Internado rotatorio","5490001000031"]
[null,"02000013","DIRECCION UNIDAD EDUCACION A DISTANCIA",null,null,null,"07000041","F07","02000054",190527,null,"Venta de productos farmacéuticos","5490001000032"]
[null,"02000021","OFICINA DIRECCION UNIVERSITARIA ACADEMICA",null,null,null,"07000051","F07","02000061",303276,null,"Servicio de consulta medica","5490001000033"]
[null,"02000022","EVALUACION Y SEGUIMIENTO CURRICULAR",null,null,null,"99000001","F07","02000062",377933,null,"Deuda aporte facultativo","5490001000034"]
[null,"02000023","PRIMER ANO BASICO",null,null,null,"08000011","F08","02000071",14514,null,"Paraninfo universitario","5490001000035"]
[null,"02000024","UNIDAD TECNICA YAPACANI",null,null,null,"08000013","F08","02000091",130650,null,"Emisión de actas de graduación","5490001000036"]
[null,"02000025","UNIDAD ACADEMICA GERMAN BUSCH",null,null,null,"08000021","F08","02000092",42702,null,"Legalización de actas","5490001000037"]
[null,"02000026","UNIDAD ACADEMICA CHIQUITANA  ROBORE",null,null,null,"08000031","F08","02000093",1020,null,"Emisión de certificación","5490001000038"]
[null,"02000031","OFICINA REGISTRO Y ADMISIONES",null,null,null,"08000041","F08","04000011",42500,null,"Cursos de nivelación","5490001000039"]
[null,"02000041","OFICINA DIRECCION UNIVERSITARIA DE INVES.",null,null,null,"08000051","F08","04000025",500,null,"Análisis de provincia F.C.F.B.","5490001000040"]
[null,"02000042","I.I.A. POSTRERVALLE",null,null,null,"08000061","F08","04000028",2550,null,"Legalización programas analíticos","5490001000041"]
[null,"02000043","CUAPE-CHARAGUA",null,null,null,"08000071","F08","04000031",1000,null,"Devolución inf. De auditoria","5490001000042"]
[null,"02000047","UNAMAZ",null,null,null,"08000081","F08","04000033",1000,null,"Devolución contraloría Cge/Drc-046/2015","5490001000043"]
[null,"02000048","UTALAB",null,null,null,"08000091","F08","05000011",4250,null,"Traspasos exención","5490001404556"]
[null,"02000051","OFICINA DIRECCION UNIVERSITARIA DE EXTENSION",null,null,null,"08000092","F08","06000011",2550,null,"Fac.tec.post grado","5490001404560"]
[null,"02000052","INTEGRACION COMUNITARIA",null,null,null,"99000001","F08","07000011",19219,null,"Ingresos no facultativos","5490002000000"]
[null,"02000053","INSTITUTO DE CAPACITACION POPULAR",null,null,null,"09000011","F09","07000021",14498,null,"Depósitos no identificados","5490002000001"]
[null,"02000054","EXPOCIENCIA",null,null,null,"09000013","F09","07000031",8916,null,"Serv.de orientación vocacional","5490002303530"]
[null,"02000061","DIRECCION DE TEC.DE LA INFORMACION Y COMUNICACION",null,null,null,"09000021","F09","07000041",7574,null,"Mesa examinadora","5490003000003"]
[null,"02000062","ORIENTACION",null,null,null,"09000031","F09","07000051",7480,null,"Miranda Peña Saúl","5490003004632"]
[null,"02000071","MUSEO DE HISTORIA",null,null,null,"09000041","F09","08000011",6800,null,"Ganancia en ope.cambiarias","5490004000002"]
[null,"02000081","COMEDOR UNIVERSITARIO SANTA CRUZ",null,null,null,"09000051","F09","08000041",2125,null,"Postgrados","5490005000000"]
[null,"02000082","COMEDOR UNIVERSITARIO CAMIRI",null,null,null,"09000061","F09","08000051",1700,null,"Doctorado","5490005000001"]
[null,"02000091","OFICINA DIRECCION DE BIENESTAR SOCIAL",null,null,null,"69511400","F09","10000011",4250,null,"Maestrías","5490005000002"]
[null,"02000092","BIENESTAR ESTUDIANTIL",null,null,null,"69610200","F09","10000031",3136,null,"Diplomado","5490005000003"]
[null,"02000093","DEPORTES",null,null,null,"99000001","F09","10000041",1955,null,"Especialidad","5490005000004"]
[null,"02000094","SERVICIOS MEDICOS Y FARMACIA",null,null,null,"10000011","F10","10000051",2125,null,"Cursos de actualización","5490005000005"]
[null,"04000011","OFICINA DECANATO FAC. DE LOS VALLES CRUCEÑOS",null,null,null,"10000013","F10","10000061",2125,null,"Certificado no deudor-diplomado","5490005000006"]
[null,"04000025","OFICINA CARRERA INGENIERIA EN SISTEMAS",null,null,null,"10000031","F10","11000011",5100,null,"Certificado no deudor-maestría","5490005000007"]
[null,"04000028","OFICINA CARRERA CIENCIAS DE LA EDUCACION",null,null,null,"10000041","F10","11000051",2859,null,"Defensa de tesis","5490005000008"]
[null,"04000031","OFICINA CARRERA CONTADURIA PUBLICA",null,null,null,"10000051","F10","11000061",1275,null,"Tutoría","5490005000009"]
[null,"04000032","OFICINA CARRERA CIENCIAS DE LA COMUNICACION",null,null,null,"10000061","F10","13000011",2091,null,"Otros ingresos","5490005000010"]
[null,"04000033","OFICINA CARRERA INGENIERIA AGROPECUARIA",null,null,null,"10110800","F10","13000013",2869,null,"Cursos de capacitación y actualización","5490005000011"]
[null,"05000011","OFICINA DECANATO (FAC.INT.DEL NORTE)",null,null,null,"10110900","F10","13000021",1700,null,"Recursos facultativos","5490010000000"]
[null,"05000013","POSTGRADO FAC. INTEGRAL DEL NORTE",null,null,null,"10111000","F10","13000031",1700,null,"Guardería infantil UAGRM.","5490010000021"]
[null,"05000015","INST.DE CAPACITACION POPULAR DEL NORTE INTEGRADO",null,null,null,"10111100","F10","13000041",2091,null,"Curso de nivelación enfermería icap","5490010000032"]
[null,"05000021","OFICINA CARRERA INGENIERIA AGRICOLA",null,null,null,"10410200","F10","13000061",1304,null,"S.A.E.G.FAC. Cs. Econ. Y fin.","5490010303115"]
[null,"05000022","OFICINA CARRERA INGENIERIA COMERCIAL",null,null,null,"10410300","F10","13000081",2091,null,"Saeg-ing.comercial","5490010303117"]
[null,"05000023","OFICINA CARRERA INGENIERIA INDUSTRIAL",null,null,null,"99000001","F10","13000091",4250,null,"Taller propedeutico","5490010303156"]
[null,"05000024","OFICINA CARRERA INGENIERIA PETROLERA",null,null,null,"11000011","F11","13000092",2091,null,"Convenio kvl Dinamarca  F.C.A.","5490010303158"]
[null,"05000025","OFICINA CARRERA INGENIERIA EN SISTEMAS",null,null,null,"11000013","F11","14000011",4652,null,"Centro inv.geod.fac.politecnica","5490010303166"]
[null,"05000026","OFICINA CARRERA DERECHO",null,null,null,"11000021","F11","14000041",1000,null,"Fac.polit.-cursos de post grado","5490010303169"]
[null,"05000027","OFICINA CARRERA MEDICINA VETERINARIA Y ZOOTECNIA",null,null,null,"11000031","F11","14000051",1700,null,"Micro-empresas facul.politecnica","5490010303176"]
[null,"05000028","OFICINA CARRERA CIENCIAS DE LA EDUCACION",null,null,null,"11000051","F11","14000061",1700,null,"Unidad aca. San Julián","5490010303188"]
[null,"05000029","OFICINA CARRERA MEDICINA",null,null,null,"11000061","F11","14000091",1428,null,"Facultad de humanidades","5490010303190"]
[null,"05000031","OFICINA CARRERA CONTADURIA PUBLICA",null,null,null,"11000071","F11","15000011",4250,null,"Carrera de psicología (regularizar)","5490010303192"]
[null,"05000046","OFICINA CARRERA ENFERMERIA",null,null,null,"11000081","F11","15000021",1275,null,"Talleres de grado","5490010303196"]
[null,"06000011","DEC.FAC. AUDITORIA FINAN.O CONTADURIA PUBLICA",null,null,null,"11110800","F11","15000051",1000,null,"Comunicación a distancia","5490010303199"]
[null,"06000013","POSTGRADO FAC. CONTADURIA PUBLICA",null,null,null,"11110900","F11","15000061",1870,null,"Aporte a la carrera","5490010303200"]
[null,"06000021","CARRERA DE CONTADURIA PUBLICA",null,null,null,"11111000","F11","15000071",1700,null,"Saldo gestión anterior recur.facul.","5490010303450"]
[null,"06000031","CARR. DE INFORMACION Y CONTROL DE GESTION",null,null,null,"11111100","F11","15000081",2230,null,"Educación a distancia","5490010303491"]
[null,"07000011","OFICINA DECANATO (CS. DEL HABITAT)",null,null,null,"11111200","F11","15000092",1000,null,"Maestrías unid.post-grado fac. Humanidades","5490010303492"]
[null,"07000013","POSTGRADO FAC. CS. DEL HABITAT",null,null,null,"11111300","F11","15000093",2125,null,"Cursos autofinanciados","5490010303494"]
[null,"07000021","OFICINA CARRERA DE ARQUITECTURA",null,null,null,"11112400","F11","16000011",26945,null,"Doctorado unid. Post-grado fac. Humanidades","5490010303501"]
[null,"07000031","OFICINA CARRERA DE PLANIFICACION TERRITORIAL",null,null,null,"11112600","F11","26000011",16074,null,"Especialidad post-grado fac. Humanidades","5490010303503"]
[null,"07000041","OFICINA CARRERA DE DISENO INTEGRAL",null,null,null,"11130900","F11","26000028",850,null,"Segunda instancia (enfermería)","5490010303504"]
[null,"07000051","OFICINA CARRERA DE ARTES",null,null,null,"11310100","F11","26000033",850,null,"Fac. Cs. Tecnología","5490010303509"]
[null,"08000011","OFICINA DECANATO (HUMANIDADES)",null,null,null,"11510200","F11","26000034",850,null,"Post-grado facultad cs. De la salud","5490010303525"]
[null,"08000013","POSTGRADO FAC. DE HUMANIDADES",null,null,null,"11510300","F11","26000046",850,null,"Valores y derechos","5490010404035"]
[null,"08000021","OFICINA CARRERA CIENCIAS DE LA EDUCACION",null,null,null,"11611100","F11","27000011",34364,null,"Examen de grado-defensa tesis C.B.","5490010404502"]
[null,"08000031","OFICINA CARRERA CIENCIAS DE LA COMUNICACION",null,null,null,"11611200","F11","29000011",2125,null,"Servicio de consultoría","5490010404504"]
[null,"08000041","OFICINA CARRERA SOCIOLOGIA",null,null,null,"11611300","F11","29000021",500,null,"Matricula P.S.A.","5490010404505"]
[null,"08000051","OFICINA CARRERA PSICOLOGIA",null,null,null,"11710100","F11","29000041",500,null,"Certificado esc.p-grado-especialz.","5490010404508"]
[null,"08000061","OFICINA CARRERA IDIOMAS",null,null,null,"11710200","F11","50000011",13600,null,"Análisis de laboratorios","5490010404521"]
[null,"08000071","OFICINA UNIDADES A DISTANCIA",null,null,null,"99000001","F11","50000021",166005,null,"Talleres","5490010404523"]
[null,"08000081","UNIDAD ACADEMICA DE PROVINCIAS (HUMANIDADES)",null,null,null,"12000011","F12","50000031",7735,null,"Aporte estudiantil comedor universitario","5490010404528"]
[null,"08000091","OFICINA CARRERA TURISMO",null,null,null,"12000013","F12","50000041",7735,null,"Legalización de actas","5490010404529"]
[null,"08000092","OFICINA CARRERA DE ACTIVIDAD FISICA",null,null,null,"12000021","F12","50000051",7735,null,"Ingresos varios Fac.CJPS.","5490010404534"]
[null,"09000011","OFICINA DECANATO (CS. DE LA SALUD)",null,null,null,"12000031","F12","50000061",7735,null,"Valores y derechos","5490010404535"]
[null,"09000013","POSTGRADO FAC. DE CS. DE LA SALUD",null,null,null,"12000041","F12",null,null,null,"Certificado de notas","5490010404537"]
[null,"09000021","OFICINA CARRERA BIOQUIMICA",null,null,null,"12111900","F12",null,null,null,"Matricula especialidad","5490010404538"]
[null,"09000031","OFICINA CARRERA ENFERMERIA",null,null,null,"12112100","F12",null,null,null,"Matricula diplomado","5490010404539"]
[null,"09000041","OFICINA CARRERA FARMACIA",null,null,null,"12112200","F12",null,null,null,"Examen segunda instancia","5490010404540"]
[null,"09000051","OFICINA CARRERA MEDICINA",null,null,null,"12112300","F12",null,null,null,"Servicios de imprenta","5490010404542"]
[null,"09000061","OFICINA CARRERA ODONTOLOGIA",null,null,null,"12112500","F12",null,null,null,"Matriculas seminarios de grados","5490010404545"]
[null,"10000011","OFICINA DECANATO (CS. JURIDICAS)",null,null,null,"12112700","F12",null,null,null,"P.a.b. matriculas UAGRM","5490010404548"]
[null,"10000013","POSTGRADO FAC. DE CS. JURIDICAS",null,null,null,"12112800","F12",null,null,null,"Recursos facultativos (fac.)","5490010404550"]
[null,"10000031","OFICINA CARRERA DERECHO",null,null,null,"12112900","F12",null,null,null,"Curso post-facultativo","5490010404551"]
[null,"10000041","OFICINA CARRERA CIENCIAS POLITICAS",null,null,null,"12113000","F12",null,null,null,"Maestrías","5490010404552"]
[null,"10000051","OFICINA CARRERA TRABAJO SOCIAL",null,null,null,"99000001","F12",null,null,null,"Seminarios","5490010404553"]
[null,"10000061","OFICINA CARRERA RELACIONES INTERNACIONALES",null,null,null,"13000011","F13",null,null,null,"II.curso post-facultativo","5490010404554"]
[null,"10110800","CONSTR.CUBIER.CANCHA POLIFUNCIONAL FCJPS-IDH",null,null,null,"13000014","F13",null,null,null,"Cursos de verano","5490010404555"]
[null,"10110900","EQUIPAMIENTO.2DO MOD.AULAS FAC.CJPS UV-32 IDH",null,null,null,"13000021","F13",null,null,null,"Aport.x trasp.y camb.carrera","5490010404556"]
[null,"10111000","FORTALECIMIENTO CENTRO DE COMPUTO FCJPS - IDH",null,null,null,"13000031","F13",null,null,null,"Aportes facultativo","5490010404557"]
[null,"10111100","EQUIPAMIENTO SALON AUDIOVISUAL PARA FCJPS -IDH",null,null,null,"13000041","F13",null,null,null,"Prog.graduacion antig.egresados","5490010404558"]
[null,"10111200","ADQ.PUPITRES P/EQUIPAR 2DO.MOD.DE AULAS FCJPS-IDH",null,null,null,"13000042","F13",null,null,null,"Fac.tec.post grado","5490010404560"]
[null,"10111300","EQUIP.SALON AUDIT.DEL 2DO.MOD.AULAS F.CS.J.P.S-IDH",null,null,null,"13000051","F13",null,null,null,"Deuda materia reprobada gral.","5490010404563"]
[null,"10111400","APOYO A PRACTICAS ACADE.DE ESTUD.FAC.CS.JURID.-IDH",null,null,null,"13000061","F13",null,null,null,"Examen de grado","5490010404570"]
[null,"10111500","INST.AIRES ACOND. DE APOYO ACAD. MOD-185 FCJPS-IDH",null,null,null,"13000071","F13",null,null,null,"Post-grado diplomados","5490010404575"]
[null,"10111600","EQUIP.SAL.AUDIT.2DO.MOD-AULAS FCJ C/MED.AUDIOV-IDH",null,null,null,"13000081","F13",null,null,null,"Maestría sistema abast. Semillas","5490010404579"]
[null,"10111700","EQUIPAMIENTO DE 3 SALAS DE COMPUTO P/FAC.CSJPS-IDH",null,null,null,"13000091","F13",null,null,null,"F.c.a. educación superior","5490010404580"]
[null,"10111800","EQUIPA.BASICO AULAS MOD-185 FAC.CS.JUR.PO.SC.-IDH",null,null,null,"13000092","F13",null,null,null,"Mesas examinadoras multigrupo","5490010404588"]
[null,"10111900","EQUIP.AULAS MOD.185 FAC.CS.JUR.C/PROY.MULT.INT-IDH",null,null,null,"13110300","F13",null,null,null,"Otros servicios","5490010404590"]
[null,"10112000","MEJORAMIENTO INFRAESTURA MOD.283 CIUDAD UNIV.-IDH",null,null,null,"13110700","F13",null,null,null,"Otros ingresos, bienes, servicios (regularizar)","5490010404591"]
[null,"10112200","EQUIP.BAS.SALONES CONFERENC.MOD.185-283 FCJPS-IDH",null,null,null,"13110800","F13",null,null,null,"Estudio fotográfico - carr.comunic.","5490010404593"]
[null,"10410200","DIS.NUEV.CURR.CONTX.Y PERT.P/PROG.FOR.CS.POL-IDH",null,null,null,"99000001","F13",null,null,null,"Seminario de grado","5490010404595"]
[null,"10410300","EQUIP.TECNO.ACADEM.P/CARR.CS.POLI.Y ADM.PUBL.IDH",null,null,null,"14000011","F14",null,null,null,"Trabajo dirigido","5490010404596"]
[null,"10410400","DES.PROG.FORM.INVES.CS.SC.DIR.DOC.CARR.MEJ.DES-IFH",null,null,null,"14000013","F14",null,null,null,"CISCO","5490010404597"]
[null,"10410500","IMPLEM.BIBLIOT.P/CARR.CS.POLIT.Y ADMIN.PUBLICA-IDH",null,null,null,"14000021","F14",null,null,null,"CIFTT","5490010404598"]
[null,"11000011","OFICINA DECANATO (CS. ECONOMICAS)",null,null,null,"14000031","F14",null,null,null,"Titulo prov.nal.tec.medio aux.de enfermería","5490010404616"]
[null,"11000013","POSTGRADO FAC. ECONOMICAS Y FINANCIERAS",null,null,null,"14000041","F14",null,null,null,"Mini P.A.B. matriculas UAGRM","5490010404617"]
[null,"11000014","OFICINA VICEDECANATO (CS. ECONOMICAS)",null,null,null,"14000051","F14",null,null,null,"Curso de guarani Finor","5490010404618"]
[null,"11000021","OFICINA INSTITUTO DE INVEST. ECONOMICAS",null,null,null,"14000061","F14",null,null,null,"Otros ingresos institucionales","5490011000000"]
[null,"11000031","OFICINA CARRERA ADM. DE EMPRESAS",null,null,null,"14000071","F14",null,null,null,"Otros ingresos institucionales","5490011404524"]
[null,"11000051","OFICINA CARRERA ECONOMIA",null,null,null,"14000081","F14",null,null,null,"Reposición formularios","5490011404525"]
[null,"11000061","OFICINA CARRERA ING. COMERCIAL",null,null,null,"14000082","F14",null,null,null,"Reposición de formularios","5490011404526"]
[null,"11000071"," OFICINA CARRERA INGENIERIA FINANCIERA",null,null,null,"14000091","F14",null,null,null,"Póliza de garantía","5490011404527"]
[null,"11000081","OFICINA CARRERA COMERCIO INTERNACIONAL",null,null,null,"14000092","F14",null,null,null,"Inf.aud.int.da¥os económicos","5490011404528"]
[null,"11110800","CONST.AREA ESPARC.P/ALUMNOS F.C.ECO,ADM,FIN.-IDH",null,null,null,"14000099","F14",null,null,null,"Alquiler de tierras yabare","5490011404530"]
[null,"11110900","ADQUIS.PUPITRES P/EQUIP.2DO MOD.AULAS FAC.CEF-IDH",null,null,null,"14110100","F14",null,null,null,"Venta de libros editorial universitaria","5490011404531"]
[null,"11111000","FORTA.TECNOL.EDUCAT.CENTRO INFORMATICO FCEAF-IDH",null,null,null,"14110600","F14",null,null,null,"Matricula UNAMAZ","5490011404532"]
[null,"11111100","FORTALECI.Y EQUIPAMIEN.BIBLIOTECA DE FCEAF-IDH",null,null,null,"14110700","F14",null,null,null,"Multa claustro univ.comite electoral","5490011404533"]
[null,"11111200","EQUIPAMIENTO 2DO MODULO DE AULAS FCEAF - IDH",null,null,null,"14110800","F14",null,null,null,"Devolución por servicios básicos","5490011404534"]
[null,"11111300","DISENO FINAL DE ING.3ER MODULO DE AULAS P FCEAF",null,null,null,"14110900","F14",null,null,null,"Alquiler para snacks","5490011404535"]
[null,"11111600","CONST.3ºMOD.AULAS P/FAC.CS.ECO.Y FIN.SCZ - IDH",null,null,null,"14111100","F14",null,null,null,"Alquiler para librerías","5490011404536"]
[null,"11111700","ADQUIS.PUPITRES P/EQUIP.3MOD.FAC.CS.ECO.Y FIN.-IDH",null,null,null,"14111200","F14",null,null,null,"Alquiler para fotocopiadoras","5490011404537"]
[null,"11111800","PROY.EQUIP.BASICO MODULOS 264 Y 265 F.C.E.A.F-IDH",null,null,null,"14111400","F14",null,null,null,"Alquiler para sala de internet","5490011404538"]
[null,"11111900","PROY.EQUIP.BASIC.NUEVO MOD.AULAS-265 F.C.E.A.F-IDH",null,null,null,"14111500","F14",null,null,null,"Devol. Sueldos en demasía inf. Contraloría","5490011404539"]
[null,"11112000","EQUIP.AULAS CON PIZARRAS DIG.INTERACTIVAS FCEF-IDH",null,null,null,"14113000","F14",null,null,null,"Ingresos por multas idh","5490011404540"]
[null,"11112100","EQUIP.BIBLIOTECA ESPECIALIZADA FAC.C.E.A.F.-IDH",null,null,null,"14113100","F14",null,null,null,"Dev. Contraloría inf.es/Ep13-15/F10-r1","5490011404541"]
[null,"11112200","CONST.4TO MOD.DE AULAS F.CS.ECONOMICA ADM.Y F.-IDH",null,null,null,"14113200","F14",null,null,null,"Devol. Sueldo en demasía plla. Gral.","5490011404542"]
[null,"11112300","AMPLIAC.REPO.EQUIP.COMPU.CENTRO.COMPUT.MOD.233-IDH",null,null,null,"14310200","F14",null,null,null,"Devolución inf.um/es-n01/e11 r1 y a1","5490011404543"]
[null,"11112400","EQUIP.BASICO 4TO MODULO DE AULA FAC. C.E.A.F-IDH",null,null,null,"14310500","F14",null,null,null,"Devoluciones bajas medicas","5490011404544"]
[null,"11112500","EQUIP.COMPLEMENTARIO 4°MOD. DE AULAS FAC. C.E.A.F",null,null,null,"14410400","F14",null,null,null,"Dev. Haberes pagados en demasía beneficios sociales","5490011404545"]
[null,"11112600","CONST.AMBIENTES PRESTAR 1EROS AUX.EST.Y DOC. FCEAF",null,null,null,"14410700","F14",null,null,null,"Devolución beneficios sociales","5490011404546"]
[null,"11112700","EQUIPAMIENTO BASICO MOD.264 Y 265 F.CS.ECO.ADM.FIN",null,null,null,"14410800","F14",null,null,null,"Dictamen responsabilidad civil CGE/DRC-062/2014","5490011404547"]
[null,"11112800","EQUIP.BASICO P/AULAS 233,243 Y 256-FAC.C.E.A.F.",null,null,null,"14610200","F14",null,null,null,"Alquiler espacio cajeros cjn","5490011404548"]
[null,"11130500","REALIZ.MAESTRIA DOCENC.E INVES.APLIC.A.CS.ECO.-IDH",null,null,null,"14710300","F14",null,null,null,"Devolución inf.um/es-n01/e11 r1 y a2","5490011404549"]
[null,"11130600","MEJOR.PROCE.METOD.Y TECN.ENSEN.APREND.DOC.FCEF-IDH",null,null,null,"14810200","F14",null,null,null,"Devolución afp-futuro gestiones pasadas","5490011404550"]
[null,"11130700","EQUIPAM.P/UNID.POSTGRADO FAC.CS.ECONOM.ADMIN.-IDH",null,null,null,"14810300","F14",null,null,null,"Dev. AFP-previsión gestiones pasadas","5490011404551"]
[null,"11130800","CONST.BANOS.APOYO INFRAEST.DEPORT.BUSINESS SCH.IDH",null,null,null,"14920300","F14",null,null,null,"Recursos  no facultativos","5490020000000"]
[null,"11130900","CONST.AREA ESTAC.VEH.P.Y JARD. UNID.POST FCEAF-IDH",null,null,null,"14990500","F14",null,null,null,"Unidad Vallegrande","5490020000045"]
[null,"11310100","SIST.GEST.CAL.Y P.FORM.P.COMP.C.ADM.EM. FCEAF-IDH",null,null,null,"99000001","F14",null,null,null,"UTALAB","5490020002048"]
[null,"11310200","APOYO PROCESO ACREDITAC.CARRERA ADM.EMPRESAS-IDH",null,null,null,"15000011","F15",null,null,null,"Gacetas oficiales y otros UAGRM","5490020303042"]
[null,"11510200","AUTOEVALUACION CARRERA ECONOMIA - IDH",null,null,null,"15000013","F15",null,null,null,"Feria expociencia UAGRM","5490020303045"]
[null,"11510300","ELABORACION PLAN ESTRATEGICO CARR.ECONOMIA - IDH",null,null,null,"15000021","F15",null,null,null,"Depósitos banco no identificados","5490020303099"]
[null,"11510400","APOYO PROC.ACRED.C.ECONO.AL SIS.NAL.EV.AC.UNIV-IDH",null,null,null,"15000031","F15",null,null,null,"D.U.E. Dir.Univ.Extension","5490020303103"]
[null,"11510500","EQUIP.AMBIENTES.P/APOYAR PROC.ACREDIT.C.ECONO.-IDH",null,null,null,"15000051","F15",null,null,null,"Escuela de post grado","5490020303105"]
[null,"11611100","DISENO CURRIC.POR COMPETENCIAS CARR.ING.COMER.IDH",null,null,null,"15000061","F15",null,null,null,"D.U.B.S. Dir.Univ.Bienst.Estud.","5490020303106"]
[null,"11611200","AUTOEVALUACION DE LA CARRERA ING.COMERCIAL - IDH",null,null,null,"15000071","F15",null,null,null,"ICAP - inst.capacitac.popular","5490020303107"]
[null,"11611300","ELABORACION PLAN ESTRATEGICO CARR.ING.COMERCI.IDH",null,null,null,"15000081","F15",null,null,null,"Escuela de postgrado cert.notas.vencimientos.","5490020303108"]
[null,"11611400","EQUIP.CENTRO DE COMPUTO CARRERA ING.COMERCIAL-IDH",null,null,null,"15000091","F15",null,null,null,"Seguro médico estudiantil UAGRM","5490020303109"]
[null,"11611500","EQUIP. DE SALON AUDIOVISUAL CARR.ING.COMERCIAL-IDH",null,null,null,"15000092","F15",null,null,null,"Dui-seminarios-talleres y otros","5490020303116"]
[null,"11611600","EQUIP.AULAS NUE.MOD.CARR.ING.COM.C/PROYE.MULTI-IDH",null,null,null,"15000093","F15",null,null,null,"Contraparte estudiantil (sume)","5490020303119"]
[null,"11611700","APOY.PROCE.ACREDT.ING.COMERCIAL ANTE SNEAUB-IDH",null,null,null,"99000001","F15",null,null,null,"Unidad Académica De Yapacani","5490020303187"]
[null,"11611800","EQUIP.TECNOLOG.EDUCATIVA.CIM.SALA DOC.Y ADMS.-IDH",null,null,null,"16000011","F16",null,null,null,"Editorial universitaria","5490020303209"]
[null,"11611900","EQUI.SALA COMPUTO CAR.ING.COMERC.P/FUNC.EN.RED-IDH",null,null,null,"16000013","F16",null,null,null,"Paraninfo universitario","5490020303210"]
[null,"11612000","EQUIP.BIBLIOTECA ESPEC.Y VIRTUAL P/C.ING.COMER-IDH",null,null,null,"16000021","F16",null,null,null,"C.A.T. San Javier","5490020303213"]
[null,"11612100","APOYO PROC.REACRED.CARR.EVAL.PROY.Y ACRED.UNIV.BOL",null,null,null,"16000022","F16",null,null,null,"Venta servicios publicitarios TV-11","5490020303217"]
[null,"11710100","AUTOEVALUACION CARR.ING.FINANCIERA - IDH",null,null,null,"16000023","F16",null,null,null,"Proyecto Yabare","5490020303221"]
[null,"11710200","ELABORACION PLAN ESTRATEGICO ING.FINANCIERA -IDH",null,null,null,"16000024","F16",null,null,null,"Visitas domiciliarias-DUBS","5490020303507"]
[null,"11710300","EQUIP.SALAS DE CAPACITACION C.ING.FINANC.CEAF-IDH",null,null,null,"16000026","F16",null,null,null,"Foncalidad estrategias de enseñanza","5490020303515"]
[null,"12000011","OFICINA DECANATO (CS. PECUARIAS)",null,null,null,"16000028","F16",null,null,null,"Foncalidad dipl.agric.sostenible","5490020303516"]
[null,"12000013","POSTGRADO FAC. CS. PECUARIAS-VETERINARIA",null,null,null,"16000031","F16",null,null,null,"Foncalidad proy.capac.prof.doc.uni.","5490020303517"]
[null,"12000021","OFICINA CARRERA MORFOFISIOLOGIA",null,null,null,"16000033","F16",null,null,null,"Foncalidad nueva estruct.curricular","5490020303518"]
[null,"12000031","OFICINA CARRERA VETERINARIA",null,null,null,"16000034","F16",null,null,null,"Foncalidad diplomado gest.ambiental","5490020303519"]
[null,"12000041","OFICINA CARRERA ZOOTECNIA",null,null,null,"16000035","F16",null,null,null,"RR.II. Seminario-taller y otros","5490020303526"]
[null,"12111800","ADQUI.VEHIC.VERS.FURGON APV P/HOSPITAL UNI.-IDH",null,null,null,"16000036","F16",null,null,null,"Conv.gbno.municipal estud.e invest.","5490020303527"]
[null,"12111900","ADQUI.VIDEO ENDOSCOPIO SERIE 200 P/HOSP.UNIV.-IDH",null,null,null,"16000041","F16",null,null,null,"P.s.a. prueba sufic.academica","5490020404505"]
[null,"12112100","MEJORAM.MODULO CENTRAL DE LA FAC. VETERINARIA-IDH",null,null,null,"16000043","F16",null,null,null,"Due - cursos de ingles","5490020404536"]
[null,"12112200","INSTAL.PLANTA INDUSTRIALIZA.LECHE EL PRADO -IDH",null,null,null,"16000046","F16",null,null,null,"Due otros ingresos","5490020404537"]
[null,"12112300","CONSTR.RESIDENC.P/PRACTICANTE YABARE PECUARIO-IDH",null,null,null,"16000051","F16",null,null,null,"Otros servicios, bienes (regularizar)","5490020404591"]
[null,"12112400","CONSTRUCCION HOSPITAL UNIVERSIT.VETER.FAS.II-IDH",null,null,null,"16000061","F16",null,null,null,"Alquileres varios (sitiaje)","5490020404598"]
[null,"12112500","CONSTRU.NUEVA BIBLIOTECA P/FAC.CS. VETERINA.-IDH",null,null,null,"16000071","F16",null,null,null,"Sitiaje Finor","5490020404599"]
[null,"12112600","ADQ.MEDIOS TRANS.APOY.ACTIV.EXTEN.C.NAL.MGB.-IDH",null,null,null,"16111200","F16",null,null,null,"Cit-centro invest.del transporte","5490020808107"]
[null,"12112700","SENALIZA.DIV.DEPEND.FAC.CS.VET.P/CUM.NORM.AC.-IDH",null,null,null,"16111300","F16",null,null,null,"U N A M A Z","5490020808503"]
[null,"12112800","ADQUIS.EQUIPAMIENTO ACADEMICO P/FAC.CS.VET.-IDH",null,null,null,"16111400","F16",null,null,null,"CIMAR","5490020808507"]
[null,"12112900","CONCLUS.MEJOR.PLANTA BAJA LAB.MORFOFIS.F.VET.-IDH",null,null,null,"16111500","F16",null,null,null,"Saldo gestión anterior recursos no facultativos","5490020808508"]
[null,"12113000","AUTOEV.C.MED.VET.Y ZOOT.ACRED.ARCU-SUR F.C.V.-IDH",null,null,null,"16111600","F16",null,null,null,"CNMGB - JICA","5490020808509"]
[null,"12113200","EQUIPA.NUEVO HOSPITAL ESCUELA DE VETERINARIA-IDH",null,null,null,"16111700","F16",null,null,null,"Inegas","5490020808510"]
[null,"12113300","EQUIP.NUEVA BIBLIOT.ESPECIALIZ.FAC.CS.VETERNI.-IDH",null,null,null,"16111800","F16",null,null,null,"I.I.A.el vallecito","5490020808511"]
[null,"12113400","EQUIPAM.CENTRO DE COMPUTO FAC.CS.VETERINARIAS-IDH",null,null,null,"16111900","F16",null,null,null,"Unidad Académica De Yapacani","5490021000000"]
[null,"12113500","EQUIPA.AULA C/PIZ.DIGIT.INTERACT.P/FAC.CS.VET.-IDH",null,null,null,"16112000","F16",null,null,null,"Venta de leche","5490021000001"]
[null,"12113600","EQUIP.BASICO AULAS DE MODULO 211,213 Y 238 FCV-IDH",null,null,null,"16112100","F16",null,null,null,"Venta de ganado vacuno","5490021000002"]
[null,"12113700","REPOS.INSTAL.TRANSFOR.ELECTR.150KVA FAC.CS.VET.IDH",null,null,null,"16112300","F16",null,null,null,"Venta de carne","5490021000003"]
[null,"12113800","EQUIP.LAB.ACADEMICA CARR.MED.VET.Y ZOOTECNIA-IDH",null,null,null,"16130100","F16",null,null,null,"Diplomado fac Ichilo","5490021000004"]
[null,"12113900","EQUIP.APOYO PRACT.ACAD.CAMPO EST.CARR.M.VET.Z.-IDH",null,null,null,"99000001","F16",null,null,null,"Maestría fac Ichilo","5490021000005"]
[null,"12114000","CONSTR.ACOMETIDA ELECT.E INST.TRANSF.SEEARPVYP-IDH",null,null,null,"26000011","F26",null,null,null,"Internet e impresiones","5490021000006"]
[null,"12114100","CONST.BLOQUE AULAS AMPLIACION DEL HOSPITAL FCV-IDH",null,null,null,"26000013","F26",null,null,null,"Alquiler de salón auditorio","5490021000007"]
[null,"12114200","EQUIP.RES.PRACT.CENTRO ACAD.INVEST.EXTE.YABARE-IDH",null,null,null,"26000022","F26",null,null,null,"Alquiler de microbús","5490021000008"]
[null,"12114300","EQUIP.CAMARA FRIGOR.P/CONSERV.ESP.ANATO.D.ESTU.IDH",null,null,null,"26000024","F26",null,null,null,"Otros ingresos","5490021000009"]
[null,"12114400","APOYO PROC.REACREDITACION C.MED.ANTE MERCOSUR-IDH",null,null,null,"26000027","F26",null,null,null,"Ingresos no identificados en poa","5490030000000"]
[null,"13000011","OFICINA DECANATO (CS. AGRICOLAS)",null,null,null,"26000028","F26",null,null,null,"Ingresos no identificados en poa","5490030000001"]
[null,"13000013","MUSEO \"NOEL KEMPFF MERCADO\"",null,null,null,"26000032","F26",null,null,null,"Valores y formularios","5490030000002"]
[null,"13000014","POSTGRADO FAC. CS. AGRICOLAS",null,null,null,"26000033","F26",null,null,null,"Ingresos varios","5490040000000"]
[null,"13000021","OFICINA CARRERA ING.AGRONOMICA TROPICAL",null,null,null,"26000034","F26",null,null,null,"Ingresos conceptos varios","5490040000001"]
[null,"13000031","OFICINA CARRERA ING. FORESTAL",null,null,null,"26000035","F26",null,null,null,"Ganancias en operaciones cam.","5490040000002"]
[null,"13000041","OFICINA CARRERA BIOLOGIA",null,null,null,"26000037","F26",null,null,null,"Ingresos programa porcino","5490041000000"]
[null,"13000042","OFICINA CARRERA DE BIOTECNOLOGIA AMBIENTAL",null,null,null,"26000046","F26",null,null,null,"Carne de cerdo","5490041000001"]
[null,"13000051","OFICINA ESCUELA GUARDABOSQUES",null,null,null,"99000001","F26",null,null,null,"Productos chacinados","5490041000002"]
[null,"13000061","OFICINA CENTRO INV.Y MANEJO RECURSOS RENOV.",null,null,null,"27000011","F27",null,null,null,"Ingresos programa aves","5490042000000"]
[null,"13000071","OF. CARRERA DE AGRIMENSURA",null,null,null,"27000013","F27",null,null,null,"Venta de huevos","5490042000001"]
[null,"13000081","UNIDAD ACADEMICA DE SAN JULIAN",null,null,null,"27000021","F27",null,null,null,"Venta de gallinas","5490042000002"]
[null,"13000091","OFICINA CARRERA ING. AGRICOLA",null,null,null,"27000026","F27",null,null,null,"Ingresos programa peces","5490043000000"]
[null,"13000092","OFICINA CARRERA CIENCIAS AMBIENTALES",null,null,null,"27000028","F27",null,null,null,"Venta de alevines","5490043000001"]
[null,"13110200","DPTO.CARR.DE LA FCA E IMPL.NUEVOS PROG. ACAD.-IDH",null,null,null,"27000032","F27",null,null,null,"Venta de juveniles","5490043000002"]
[null,"13110300","EQUIP.LAB.MULTIDICIPLINARIO ACAD.Y DE INV.FCA-IDH",null,null,null,"27000033","F27",null,null,null,"Venta de adultos","5490043000003"]
[null,"13110700","MEJORAMIENTO SIST.SANITARIO FAC. CS.AGRICOLAS-IDH",null,null,null,"27000036","F27",null,null,null,"Ingresos ovino-caprino","5490044000000"]
[null,"13110800","ADQUI.DE PUPITRES Y TABURETES P/LAB.MULTIDIS.-IDH",null,null,null,"27000038","F27",null,null,null,"Venta de ovinos","5490044000001"]
[null,"13110900","INSTAL.AIRES ACONDIC.AULAS Y LABORA.ACAD.FCA-IDH",null,null,null,"27000039","F27",null,null,null,"Venta de caprinos","5490044000002"]
[null,"13111000","EQUIP.AULAS Y LABORATORIOS ACADEMICOS FCA -IDH",null,null,null,"99000001","F27",null,null,null,"Ingresos programa apícola","5490045000000"]
[null,"13111100","EQUIPAMIENTO NUEVA BIBLIOTECA FCA FASE I -IDH",null,null,null,"28000011","F28",null,null,null,"Venta de miel","5490045000001"]
[null,"13111200","EQUIPAMIENTO CENTRO INFORMATICO FCA - IDH",null,null,null,"28000013","F28",null,null,null,"Programa bovino Remanso","5490046000000"]
[null,"13111300","EQUIP.ALBERGUE CIRCULACION DE ESTUDIANTES FCA-IDH",null,null,null,"28000021","F28",null,null,null,"Venta de carne de bovinos","5490046000001"]
[null,"13111400","ENMALLADO PERIMETRAL PREDIOS DE LA FCA - IDH",null,null,null,"28000041","F28",null,null,null,"Venta de equinos","5490046000002"]
[null,"13111500","COLOCAC.PROTECTOR VENTANA Y REMODEL.BIBLIOTE.-IDH",null,null,null,"28110600","F28",null,null,null,"Programa bovino Yabare","5490047000000"]
[null,"13112200","DIS.RED Y AGUA POTABLE Y ALCANT.SANITARIO FCA-IDH",null,null,null,"99000001","F28",null,null,null,"Venta de carne de bovino","5490047000001"]
[null,"13112300","CONSTRUC.COLISEO POLIFINCIONAL FAC.CS.AGRI. -IDH",null,null,null,"29000011","F29",null,null,null,"Ingresos por consignación","5490048000000"]
[null,"13112400","CONSTRUC.3ER.MOD.ACADEMICO P.FAC.CS.AGRICOLAS-IDH",null,null,null,"29000013","F29",null,null,null,"Ventas prod. Consig.","5490048000001"]
[null,"13112500","CONST.CERRAMIENTO PERIMETRAL DEL CAMPUS FCA-IDH",null,null,null,"29000021","F29",null,null,null,"Hospital universitario de veterinaria","5490050000000"]
[null,"13112600","EQUIPAMIENTO DE LABORATORIOS ACADEMICOS FCA.-IDH",null,null,null,"29000031","F29",null,null,null,"Medicamentos en general","5490050000001"]
[null,"13112700","APOY.PRACT.ACADEM.ESTUD.CAR.BIOL.CS.AMBT.AGRI.IDH",null,null,null,"29000041","F29",null,null,null,"Servicio de consulta externa","5490050000002"]
[null,"13112800","FORTALEC.CENTRO.COMPUTO FAC. CS. AGRICOLAS-IDH",null,null,null,"29110400","F29",null,null,null,"Otros servicios H.U.V.","5490050000003"]
[null,"13112900","CONST.MOD.LAB.MULTIDIS.ACAD.Y DE INV.FCA.FA-II-IDH",null,null,null,"99000001","F29",null,null,null,"Análisis clínicos en grl. Laboratorio h.u.v.","5490050000004"]
[null,"13113000","EQUIP.LAB.MULTIDISCIPLINARIOS C.B.Y.C.A. F.C.A-IDH",null,null,null,"30000011","F30",null,null,null,"Clínica rural Samaipata","5490050000005"]
[null,"13113100","EQUIPAM.UNID.ACADEMICAS ADMIN.FAC.CS.AGRICOLAS-IDH",null,null,null,"99000001","F30",null,null,null,"Laboratorios histopatológico y provetsur","5490050000006"]
[null,"13113200","REPOSICION EQUIP.PRACT.ACAD.APLIC.TEC.C.PROD.A-IDH",null,null,null,"00000011","SIC",null,null,null,"Servicios quirúrgicos","5490050000008"]
[null,"13113300","EQUIP.LAB.D.SUELO.AGUA.PLANTAS.FA.CS.AGRICOAS.-IDH",null,null,null,"00000014","SIC",null,null,null,"Alquiler amb.quirofano","5490050000009"]
[null,"13113400","EQUIP APOYO PRACT.DE CAMPO PARA EST. FAC.CS.A.-IDH",null,null,null,"00000016","SIC",null,null,null,"Canal 11 CTVU","5490051000000"]
[null,"13113500","CONST.RESIDENCIA EST.PRACTICANTE YABARE AGRICOLA A",null,null,null,"00000019","SIC",null,null,null,"Publicidad institucional","5490051000001"]
[null,"13113600","CONST.ACOMETIDA DE MEDIA TENSION EN YABARE AGRICOL",null,null,null,"00000021","SIC",null,null,null,"Publicidad comercial","5490051000002"]
[null,"13130100","EQUIP.COMPLEM.Y REPOSIC.EQUIPO.LABOR.P.MHNNKM-IDH",null,null,null,"00000022","SIC",null,null,null,"Publicidad política","5490051000003"]
[null,"13130200","IMPLEM.DEL CENTRO GEOESPACIAL P/BIODIVERS.BOLIVIA",null,null,null,"00000023","SIC",null,null,null,"Publicidad crawl","5490051000004"]
[null,"13140200","EQUIP.AMBIENTES UNID. POSTGRADO DE FCA -IDH",null,null,null,"00000024","SIC",null,null,null,"Programación institucional","5490051000011"]
[null,"13140300","MEJORAM.AMBIENTES UNIDAD POSTRADO FCA FASE II-IDH",null,null,null,"00000031","SIC",null,null,null,"Programación comercial","5490051000012"]
[null,"13210400","AUTOEVA.C.ING.AGRONO.ARCUSUR,T.CTA.DIM.C.C.I.-IDH",null,null,null,"00000041","SIC",null,null,null,"Programación cultural","5490051000013"]
[null,"13210500","DOTAC.MAQUI.EQUIP.AGRIC.P/PRACTIC.ESTUD.C.AGRO.IDH",null,null,null,"00000061","SIC",null,null,null,"Programación social","5490051000014"]
[null,"13210600","APOYO PROC.REACREDITACION C.I.A.ANTE ARCO-SUR-IDH",null,null,null,"00000062","SIC",null,null,null,"Avisos sociales","5490051000021"]
[null,"13310100","APOYO PROC.ACREDIT.C/INF.FORESTAL A.SIS.NAL.EA-IDH",null,null,null,"00000064","SIC",null,null,null,"Avisos necrológicos","5490051000022"]
[null,"13310200","CONS.LAB.PROD.FOREST.MADERAB.Y NO MAD.CAR.FORE-IDH",null,null,null,"00000066","SIC",null,null,null,"Copia de cassetes","5490051000031"]
[null,"13310300","EQUIP.LAB.PROD.FOREST.MADERABLES Y NO MADERAB.-IDH",null,null,null,"00000067","SIC",null,null,null,"Elaboración de spots","5490051000032"]
[null,"13310400","EQUIP.TALLER CARPINTERIA LAB.TEC.MADERA C.I.F-IDH",null,null,null,"00000081","SIC",null,null,null,"Titulaciones televisivas","5490051000033"]
[null,"13310500","APOY.PROCESO DE REACR.CARR.ING.FORESTAL ANTE CEUB",null,null,null,"00000091","SIC",null,null,null,"Otros ingresos","5490051000034"]
[null,"13410100","SIS.INF.PROCE.AUTOEV.Y PLAN.ESTRA.C.BIO.CVAI-IDH",null,null,null,"00000092","SIC",null,null,null,"Ingreso cidta","5490052000000"]
[null,"13410200","APOYO PROC.ACREDIT.C.BIOLOG.ANTE SIS.NAL.E.ACR-IDH",null,null,null,"01000011","SIC",null,null,null,"Análisis de laboratorio","5490052000001"]
[null,"13610100","EFECTOS CAMB.CLIM.REGIM.PLUVIOM.A.INTEG.SCZ.-IDH",null,null,null,"01000014","SIC",null,null,null,"Venta de productos","5490052000002"]
[null,"13810200","C.BARDA PERIMETRAL B.SEG.UNIDA.ACAD.S.JULIAN-IDH",null,null,null,"01000021","SIC",null,null,null,"Internado rotatorio","5490052000003"]
[null,"13810300","ADQUIS.PUPITRES P/UNID.ACAD.SAN JULIAN-IDH",null,null,null,"01000022","SIC",null,null,null,"Cursos de talleres","5490052000004"]
[null,"13810400","ADQUIS.MEDIO TRANSP.APOYO PRACT.EST.S.JULIAN-IDH",null,null,null,"01000023","SIC",null,null,null,"Capacitación","5490052000005"]
[null,"13810500","EQUIP.LAB.QUIMICA Y SUELOS UN.ACAD.S.JULIAN-IDH",null,null,null,"01000033","SIC",null,null,null,"Venta de textos de enseñanza","5490052000006"]
[null,"13810600","EQUIP.LABOR.DE PRACT.AREA CLINICA CARR.ENFER.-IDH",null,null,null,"01000034","SIC",null,null,null,"Consultoría y asistencia técnica","5490052000007"]
[null,"13810700","CONST.GUARDER.INFANT.UN.ACAD.SAN JULIAN DS.961-IDH",null,null,null,"01000035","SIC",null,null,null,"Proyecto de investigación y convenios","5490052000008"]
[null,"13810800","MEJORA.MODULO AULAS DE LA UNID.ACAD.SAN JULIAN-IDH",null,null,null,"01000041","SIC",null,null,null,"Fotocopias","5490052000009"]
[null,"13810900","CONSTRUC.COLISEO POLIFUNCIONAL U.AC.SAN JULIAN-IDH",null,null,null,"01000043","SIC",null,null,null,"Otros ingresos","5490052000010"]
[null,"13811000","EQUIP.GUARDERIA INFANTIL U.A.SAN JULIAN DS0961-IDH",null,null,null,"01000051","SIC",null,null,null,"C.M.B.G.","5490053000000"]
[null,"13811100","INV.MEJ.GENETICO DE QUINUA METODO HCCRTDSC-IDH",null,null,null,"01000052","SIC",null,null,null,"Leche","5490053000001"]
[null,"13910100","APOYO PRACT.ACADEM.DE ESTUD.C/ING.AGRICO.FINOR-IDH",null,null,null,"01000054","SIC",null,null,null,"Semen","5490053000002"]
[null,"13910200","FORTALECIM.CENTRO DE COMPUTO CAR..ING.AGRICOLA-IDH",null,null,null,"01000061","SIC",null,null,null,"Ganado nelore","5490053000003"]
[null,"13910300","EQUIP.MAQ.AGRIC.P/PRACT.ESTUDIANTES ING.AGRIC.-IDH",null,null,null,"01000071","SIC",null,null,null,"Ganado GYR","5490053000004"]
[null,"13910400","CONST.MOD.DE AULAS C.ING.AGRICOLA EN LA FINOR-IDH",null,null,null,"01000081","SIC",null,null,null,"Ganado holando","5490053000005"]
[null,"13910500","EQUIP.BASICO LAB.DE BIOLOGIA Y BOTANICA C.ING.A.M.",null,null,null,"02000011","SIC",null,null,null,"Ganado mestizo","5490053000006"]
[null,"14000011","OFICINA DECANATO (CS. EXACTAS)",null,null,null,"02000013","SIC",null,null,null,"Ganado equino","5490053000007"]
[null,"14000013","POSTGRADO FAC. CS. EXAC. Y TECNOLOGIA",null,null,null,"02000021","SIC",null,null,null,"Nitrógeno liquido","5490053000008"]
[null,"14000021","OFICINA INSTITUTO INVESTIGACIONES",null,null,null,"02000022","SIC",null,null,null,"Prestación de servicios por produc. De semen","5490053000009"]
[null,"14000031","OFICINA CARRERA ING. CIVIL",null,null,null,"02000023","SIC",null,null,null,"Prestación de servicios de laboratorio","5490053000010"]
[null,"14000041","OFICINA CARRERA ING. INDUSTRIAL",null,null,null,"02000024","SIC",null,null,null,"Cursos de capacitación","5490053000011"]
[null,"14000051","OFICINA CARRERA ING.PETROLERA",null,null,null,"02000025","SIC",null,null,null,"Ingresos no identificado","5490053000012"]
[null,"14000061","OFICINA CARRERA ING.QUIMICA Y PROCESOS",null,null,null,"02000026","SIC",null,null,null,"Ganancias en operaciones cambiarias","5490053000013"]
[null,"14000071","OFICINA CARRERA ING.INFORMATICA",null,null,null,"02000031","SIC",null,null,null,"Saldo gestión anterior de banco","5490053000014"]
[null,"14000081","OFICINA CARRERA INDUSTRIA DE LA ALIMENTACION",null,null,null,"02000041","SIC",null,null,null,"Saldo gestión anterior de cuenta por cobrar","5490053000015"]
[null,"14000082","LABROB",null,null,null,"02000042","SIC",null,null,null,"Otros ingresos","5490053000016"]
[null,"14000091","OFICINA CARRERA ING. DE CONTROL DE PROCESOS",null,null,null,"02000043","SIC",null,null,null,"UTALAB","5490054000000"]
[null,"14000092","OFICINA CARRERA INGENIERIA AMBIENTAL",null,null,null,"02000047","SIC",null,null,null,"Ingresos UTALAB","5490054000001"]
[null,"14000099","OFICINA CARRERA ING.ELECTROMECANICA",null,null,null,"02000048","SIC",null,null,null,"Laboratorio labrob","5490054000002"]
[null,"14110100","CONCLUSION LAB. DE HIDRAULICA E HIDROLOGIA-IDH",null,null,null,"02000051","SIC",null,null,null,"Laboratorio procesos quimicos","5490054000003"]
[null,"14110600","CONSTRUC.MODULO AULAS P/FAC.TECNOLOGIA(20%)-IDH",null,null,null,"02000052","SIC",null,null,null,"Laboratorio de ing. Civil","5490054000004"]
[null,"14110700","EQUIPAM.BIBLIOTECA CENTRAL.FAC.TECNOLOGIA - IDH",null,null,null,"02000053","SIC",null,null,null,"Laboratorio ing. Química","5490054000005"]
[null,"14110800","ADQUI.MEDIOS.AUDIOVIS.P/MEJORAR CALID P.E.A.-IDH",null,null,null,"02000054","SIC",null,null,null,"Laboratorio de suelo","5490054000006"]
[null,"14110900","ADQ. PUPITRES P.AULAS LAB.FISICA Y QUIMICA-IDH",null,null,null,"02000061","SIC",null,null,null,"Laboratorio de biología","5490054000007"]
[null,"14111000","IMPLEM.METOD.DESA.RAZON.LOG.MAT.EST.C.S.A.TIC-IDH",null,null,null,"02000062","SIC",null,null,null,"Laboratorio de biotecnología","5490054000008"]
[null,"14111100","CONCLUSION LAB.HIDRAULICA-HIDROLOGIA FASE II-IDH",null,null,null,"02000071","SIC",null,null,null,"Análisis lab. UTALAB","5490054000009"]
[null,"14111200","CLIMATIZACION Y EQUIP.LAB.FIS.Y.QUIMI.FCET-IDH",null,null,null,"02000081","SIC",null,null,null,"Camiri","5490055000000"]
[null,"14111300","REALIZACION XIII CONGRESO DE MATEMA.APLICAD.-IDH",null,null,null,"02000082","SIC",null,null,null,"Paraninfo universitario  Camiri","5490055000001"]
[null,"14111400","IMP.MET.DESAR.RAZ.LOG.MAT.D.EST.APOY TIC.F-III-IDH",null,null,null,"02000091","SIC",null,null,null,"Ingresos por alquileres","5490056000000"]
[null,"14111500","CONSTRUC.2DO.MODULO AULAS P.FACUL.TECNOLOGIA-IDH",null,null,null,"02000092","SIC",null,null,null,"Ingreso facultad de cs. Farmacéuticas y Bioquímica","5490057000000"]
[null,"14111600","EQUIP. BASICO LAB.FISICA Y QUIMICA F.CS.E.TEC-IDH",null,null,null,"02000093","SIC",null,null,null,"Cursos de capacitación y actualización","5490057000001"]
[null,"14111700","ADQ.MEDIOS TRANSP.P/APOYAR PRACT.CAMPO DE EST.-IDH",null,null,null,"02000094","SIC",null,null,null,"Seguro social universitario","5490057000002"]
[null,"14111800","IMP.MET.DESAR.RAZ.LOG.MAT.D.EST.APOY TIC.F-IV -IDH",null,null,null,"04000011","SIC",null,null,null,"Seguro universitario estudiantil","5490057000003"]
[null,"14111900","EQUIP.AULAS MOD-214 A Y B C/PROYECTORES MULTIM-IDH",null,null,null,"04000025","SIC",null,null,null,"Diplomado 25%","5490057000004"]
[null,"14112000","FORT.BIBLIOT.FCET,A TRAV.ADQ.LIBROS,EQUI.MUEB.-IDH",null,null,null,"04000028","SIC",null,null,null,"Especialidades 25%","5490057000005"]
[null,"14112100","IMPLEM.MET.DES.DE RAZON LOG/MAT CICLO SEC(F-V)-IDH",null,null,null,"04000031","SIC",null,null,null,"Maestría 25%","5490057000006"]
[null,"14112200","EQUIPAM.COMPLEMENT.P/BIBLIOTECA FAC.CS.EXT.TEC.IDH",null,null,null,"04000032","SIC",null,null,null,"Doctorado 25%","5490057000007"]
[null,"14112300","EQUIPAM.BASICO AULTAS MOD-228 FAC.TEC.Y CS.EX.-IDH",null,null,null,"04000033","SIC",null,null,null,"Cursos de capac. 10%","5490057000008"]
[null,"14112400","EQUIP.AULAS MOD-228 FCET CON PROYECTORES MULT.-IDH",null,null,null,"05000011","SIC",null,null,null,"Diplomado vía educa. 10%","5490057000009"]
[null,"14112500","EQUIP.BASICO PUPIT.MESA.DIBUJ.P.AULAS MOD-228.IDH",null,null,null,"05000013","SIC",null,null,null,"Ingresos el vallecito","5490058000000"]
[null,"14112600","CONST.NUEVO MODULO DE AULAS FAC.CS.EXACTA Y T.-IDH",null,null,null,"05000015","SIC",null,null,null,"Ingresos I.I.A. El Vallecito","5490058000001"]
[null,"14112700","CONST.EDIFICIO P/LAB.ESPECIALIDAD F.CS.E.Y T.-IDH",null,null,null,"05000021","SIC",null,null,null,"Diagnóstico de laboratorio","5490058000002"]
[null,"14112800","EQUIPAM.BIBLIOTEC.FAC.CS.EX.TEC.ADQUIS.MUEBLES-IDH",null,null,null,"05000022","SIC",null,null,null,"Venta de productos","5490058000003"]
[null,"14112900","CAP.DOC.F.C.E.T.EN EDUC.SUP.HERRAMIENTAS TIC'S-IDH",null,null,null,"05000023","SIC",null,null,null,"Cursos de talleres","5490058000004"]
[null,"14113000","MEJ.DE LA CALIDAD EDUCATIVA CS.EXACT.TEC.INNOVIA",null,null,null,"05000024","SIC",null,null,null,"Capacitación","5490058000005"]
[null,"14113100","EQUIP.NUEVOS AMB.TRASLADO CPD DE FCEYT A MOD.225",null,null,null,"05000025","SIC",null,null,null,"Venta de texto de enseñanza","5490058000006"]
[null,"14113200","EQUIP.COMPL.SECCION BIBLIOTECA VIRTUAL FAC.CS.E.T.",null,null,null,"05000026","SIC",null,null,null,"Consultoría y asistencia técnica","5490058000007"]
[null,"14113300","EQUIP.BASICO DE AULAS MOD.225-FAC.CS.EXACTAS Y TEC",null,null,null,"05000027","SIC",null,null,null,"Proyecto de investigación y convenios","5490058000008"]
[null,"14130100","EQUIP.LAB.COMP.POSTGRADO FAC.CS.EXACT.Y TECN.-IDH",null,null,null,"05000028","SIC",null,null,null,"Otros ingresos","5490058000009"]
[null,"14310200","EQUIP.LABORATORIO DE HIDRAULICA E HIDROLOGIA-IDH",null,null,null,"05000029","SIC",null,null,null,"Ingresos museo","5490059000000"]
[null,"14310300","EQUIP.LABOR.MANEJO DESARROL.SOFTWARE ING.CIV.IDH",null,null,null,"05000031","SIC",null,null,null,"Souvenirs","5490059000001"]
[null,"14310500","EQUIPAM.LABORAT.SUELOS CARR.ING.CIVIL FASE I-IDH",null,null,null,"05000046","SIC",null,null,null,"Servicios de laboratorio","5490059000002"]
[null,"14310600","APOYO PRACTICAS ACADEMIC.ESTUD.CARR.ING.CIVIL-IDH",null,null,null,"06000011","SIC",null,null,null,"Alquileres","5490059000003"]
[null,"14310700","CONST.AREAS ACCESO,PARQUEO LAB.ING.CIVIL.HIDRA-IDH",null,null,null,"06000013","SIC",null,null,null,"Comisiones","5490059000004"]
[null,"14310800","APOYO PROCES.ACREDIT.ING.CIVIL ANTE SIS.NAL.EA-IDH",null,null,null,"06000021","SIC",null,null,null,"Trabajos de investigación y extensión","5490059000005"]
[null,"14310900","EQUIP.LAB.HORMIGON Y TOPOGRAFIA CAR.ING.CIVIL.-IDH",null,null,null,"06000031","SIC",null,null,null,"Entradas a la sala exposición","5490059000006"]
[null,"14311000","FORTAL.CENT.COMPUT.Y LAB.SOFTWARE CAR.ING.CIVI-IDH",null,null,null,"07000011","SIC",null,null,null,"Estudios de investigación y extensión","5490059000007"]
[null,"14311100","APOYO PROCESO ACREDITACION C.ING.CIVIL AL MERCOSUR",null,null,null,"07000013","SIC",null,null,null,"Estudios de investigación y extensión","5490059000008"]
[null,"14311200","EQUIP.BASICO PARA MOD.AULA 222 C.ING.CIVIL F.C.E.T",null,null,null,"07000021","SIC",null,null,null,"Ingresos fac. Del chaco","5490060000000"]
[null,"14311300","EQUIP.LAB.HORMIGON/ASFALTO-CARR.ING.CIVIL-FCET",null,null,null,"07000031","SIC",null,null,null,"Servicios de laboratorio","5490060000001"]
[null,"14311400","EQUIP.ESPCIALIZADO P/LAB.FUNDACIONES-CARR.ING.CIVI",null,null,null,"07000041","SIC",null,null,null,"Valores universitario","5490060000002"]
[null,"14410400","ADQUIS.BIBLIOGRA.P/ACTUALZ.BIBLIOTECA CARR.-IDH",null,null,null,"07000051","SIC",null,null,null,"Otros ingresos","5490060000003"]
[null,"14410700","EQUIPAMIENTO CENTRO COMPUTO CAR.ING.INDUSTRIAL-IDH",null,null,null,"08000011","SIC",null,null,null,"Alquiler de microbús","5490210000008"]
[null,"14410800","AMUEBLAM.SALA AUDIOVISUAL 217-10,CAR.ING.INDUS-IDH",null,null,null,"08000013","SIC"]
[null,"14410900","REALIZACION EVAL.EXT.SIST. ARCU-SUR C.ING.IND.-IDH",null,null,null,"08000021","SIC"]
[null,"14411000","EQUIP.LABOR.DE ELECTROTECNIA C.ING.INDUSTRIAL-IDH",null,null,null,"08000031","SIC"]
[null,"14411100","APOYO AL PROC.ACRED.C.ING.IND.ANTE EL SNEAUB-IDH",null,null,null,"08000041","SIC"]
[null,"14411200","A.PROC.REACREDITACION C.I.INDUSTRIAL ANTE MERCOSUR",null,null,null,"08000051","SIC"]
[null,"14510200","IMPLEM.LABOR.SIMULAC.COMPUTARIZ CARR.PETROLERA-IDH",null,null,null,"08000061","SIC"]
[null,"14510300","EQUIP.LABORAT.DE LODOS CAR.ING.PETROLERA FCET-IDH",null,null,null,"08000071","SIC"]
[null,"14610200","EQUIP.CENTRO.COMPUTO Y LABORATORIOS ING.QUIMI.-IDH",null,null,null,"08000081","SIC"]
[null,"14610300","REAL.VISITA PARES EVAL.EXT. ARCU-SUR C.ING.QMC-IDH",null,null,null,"08000091","SIC"]
[null,"14610400","ADQ.BIBLIOGRAFIA DE ING.QUIM.ACT.BIBLIOTECA T.-IDH",null,null,null,"08000092","SIC"]
[null,"14610500","FORTAL.LAB.PROC.QUIM.C/PLANT.PILOTO.EQUI.DIDAC-IDH",null,null,null,"09000011","SIC"]
[null,"14610600","EQUIP.LAB.CONT.AUTOM.C/SIS.APLI.CONTROL.PROCES-IDH",null,null,null,"09000013","SIC"]
[null,"14610700","AP.PROC.REACREDITACION C.ING.QUIMICA ANTE MERCOSUR",null,null,null,"09000021","SIC"]
[null,"14710300","EQUIPAMIENTO LABORAT.REDES CAR.ING.INFORMATICA-IDH",null,null,null,"09000031","SIC"]
[null,"14710400","APOYO PROCS.ACREDIT.C.INFORMAT.ANTE SIS.NAL.EA-IDH",null,null,null,"09000041","SIC"]
[null,"14710500","FORTALEC.LAB.COMPUTACION D/LA CARR.INFORMATICA-IDH",null,null,null,"09000051","SIC"]
[null,"14810200","INSTAL.EXTRUSOR Y EQUIP.P.LAB.INSTIT.BO.SOYA-IDH",null,null,null,"09000061","SIC"]
[null,"14810300","EQUIPAMIENTO CENTRO COMPUTO CARR.ING.ALIMENTO-IDH",null,null,null,"10000011","SIC"]
[null,"14810400","APOYO.PROC.DE EVAL.EXT.P.PROC.ACREDI.ING.ALIM.IDH",null,null,null,"10000013","SIC"]
[null,"14810500","IMPLE.PLANTA PILOTO DE PROCES.FRUT.Y LACTEOS - IDH",null,null,null,"10000031","SIC"]
[null,"14810600","A.PROC.REACRED.C.ING.ALIMENTOS ANTE SIST.N.E.A.U.B",null,null,null,"10000041","SIC"]
[null,"14910300","ADQUIS.3 PLANTAS PILOTO CAR.ING.CONTROL.PROC.-IDH",null,null,null,"10000051","SIC"]
[null,"14910400","EQUIP.CENTRO.COMP.Y SALA AUDIOV.CAR.ING.PROCES-IDH",null,null,null,"10000061","SIC"]
[null,"14910500","APOYO PROC.ACREDITA.CARR.ING.CONTROL PROCESOS -IDH",null,null,null,"10110800","SIC"]
[null,"14910600","EQUIP.AMBIE.P/APOYO PROC.ACRED.CAR.CTRL.PROCES.IDH",null,null,null,"10110900","SIC"]
[null,"14920300","IMPLEM.LAB.SIST.INFORM.GEOGRAFICA.P/ING.COMER.IDH",null,null,null,"10111000","SIC"]
[null,"14920400","IMPLEMENTAC.LABORAT.ACADEM.CARR.ING.AMBIENTAL-IDH",null,null,null,"10111100","SIC"]
[null,"14920500","APOYO PROCESO ACREDITACION.CARR.ING.AMBIENTAL-IDH",null,null,null,"10111200","SIC"]
[null,"14920600","EQUIP.AMBIENT.P/APOYAR PROC.ACREDI.C.ING.AMBIE-IDH",null,null,null,"10111300","SIC"]
[null,"14920700","EQUIP.COMPLEM.LABORAT.DE MECAN.CARR.ING.ELECTROMEC",null,null,null,"10111400","SIC"]
[null,"14990500","CONST.EQUIP.INSTA.INVES.ELECTRI.PARQ.INDUST.IDH",null,null,null,"10111500","SIC"]
[null,"14990600","FORT.LAB.ELECTRONICA CARR.ING.ELECTROMECANICA-IDH",null,null,null,"10111600","SIC"]
[null,"14990700","EQUIP.LAB.DE MECANICA CARR.ING.ELECTROMECANICA-IDH",null,null,null,"10111700","SIC"]
[null,"14990800","EQUIP.CENTRO COMPUTO CARR.ING.ELECTROMECANICA-IDH",null,null,null,"10111800","SIC"]
[null,"14991000","CONST.C.PERIMETRAL AREA PARQUEO VEH.P.LAB.PISC-IDH",null,null,null,"10111900","SIC"]
[null,"14991100","APOYO PROCES.ACREDITAC.CAR.ING.ELECTROMECANICA.IDH",null,null,null,"10112000","SIC"]
[null,"14991200","EQUIP.AMBIENT P/APOYO PROCE.ACRED.ING.ELECTROM-IDH",null,null,null,"10112200","SIC"]
[null,"15000011","OFICINA DECANATO (POLITECNICA)",null,null,null,"10410200","SIC"]
[null,"15000013","POSTGRADO FAC. POLITECNICA SANTA CRUZ",null,null,null,"10410300","SIC"]
[null,"15000014","UNIDAD ACADEMICA PROVINCIAL \"EL TORNO\"",null,null,null,"10410400","SIC"]
[null,"15000015","UNIDAD ACADEMICA PROVINCIAL \"PUERTO SUAREZ\"",null,null,null,"10410500","SIC"]
[null,"15000021","OFICINA CARRERA TEC.SUP.CONS.CIVILES",null,null,null,"11000011","SIC"]
[null,"15000031","OFICINA CARRERA TEC.SUP.TOPOGRAFIA",null,null,null,"11000013","SIC"]
[null,"15000051","OFICINA CARRERA TEC.SUP.MECANICA GENERAL",null,null,null,"11000014","SIC"]
[null,"15000061","OFICINA CARRERA TEC.SUP.ELEC.INDUSTRIAL",null,null,null,"11000021","SIC"]
[null,"15000071","OFICINA CARRERA TEC.SUP.ELECTRONICA",null,null,null,"11000031","SIC"]
[null,"15000081","OFICINA CARRERA TEC.SUP. EN OFIMATICA",null,null,null,"11000051","SIC"]
[null,"15000091","UND. MICROEMPRESA Y CAP. TECNICA",null,null,null,"11000061","SIC"]
[null,"15000092","CARR. TEC. SUPERIOR EN SIDERURGIA",null,null,null,"11000071","SIC"]
[null,"15000093","OFICINA CARRERA DE INGENIERIA EN AGRIMENSURA",null,null,null,"11000081","SIC"]
[null,"15110700","EQUIP.JEFATURA ADMINIS.Y FINANCIERA FAC.POL.-IDH",null,null,null,"11110800","SIC"]
[null,"15110800","EQUIPA.ACADEMICO Y ADMINISTRATIVO P/LA FAC.-IDH",null,null,null,"11110900","SIC"]
[null,"15110900","ADQUIS.MICROBUS APOYO PRACTICAS EMPRES.EST.-IDH",null,null,null,"11111000","SIC"]
[null,"15111000","INSTAL.CABLEADO INFORMATICO MOD-219 FAC.POL.-IDH",null,null,null,"11111100","SIC"]
[null,"15111100","EQUIPAMIENTO DE LA BIBLIOTECA FAC.POLITECNICA-IDH",null,null,null,"11111200","SIC"]
[null,"15111200","EQUIP.LABORATORIO DE SUELOS FAC.POLITECNICA -IDH",null,null,null,"11111300","SIC"]
[null,"15111300","ESTUD.SITUA.LABORAL PROFES.TITULADOS FAC.POL-IDH",null,null,null,"11111600","SIC"]
[null,"15111400","EQUIP.AMOBLAMIENTO DEL AUDITORIO FAC.POLITEC.-IDH",null,null,null,"11111700","SIC"]
[null,"15111500","CONSTRUCCION MODULO AULAS FAC.POLITECNICA - IDH",null,null,null,"11111800","SIC"]
[null,"15111600","EQUIP.TALLER.INSTAL.GAS DOMIC.Y CONVER.MOT.GAS-IDH",null,null,null,"11111900","SIC"]
[null,"15111700","EQUIP.ACADEM.NUEVO MODULO D.AULAS FAC.POLITEC.-IDH",null,null,null,"11112000","SIC"]
[null,"15111800","CONSTR.VERJA PERIMETRAL FAC.POLITECNICA SC.-IDH",null,null,null,"11112100","SIC"]
[null,"15111900","EQUIPAM.ACADEM.NUEVO MODULO 226 FAC.POLITEC.-IDH",null,null,null,"11112200","SIC"]
[null,"15112000","EQUIP.BASICO MOD-226 FACULTAD POLITECNICA SC.-IDH",null,null,null,"11112300","SIC"]
[null,"15112100","EQUIP.E.INST.SISTEM.CAM.SEGURID.MOD-212 F.POL-IDH",null,null,null,"11112400","SIC"]
[null,"15112200","EQUIPAM.BASICO BIBLIOTECA FAC.POLITECNICA - IDH",null,null,null,"11112500","SIC"]
[null,"15112300","CAPAC.DOC.FAC.POLIT.EDUC.VIRTUAL MEJ.PROC.ENSE-IDH",null,null,null,"11112600","SIC"]
[null,"15112400","EQUIP.BASICO CENTRO DE COMPUTO FAC.POLITECNICA-IDH",null,null,null,"11112700","SIC"]
[null,"15112500","CONST.PLAZA Y PARQUEO MOTOCICL.FAC.POLITECNICA-IDH",null,null,null,"11112800","SIC"]
[null,"15112600","MEJORAMIENTO MOD.DE AULAS 202 FAC.POLITECNICA-IDH",null,null,null,"11130500","SIC"]
[null,"15112700","CONST.MOD.AULAS U.ACAD.EL TORNO DEPENDIENTE FAC.P.",null,null,null,"11130600","SIC"]
[null,"15112800","EQUIP.ESPECIAL.LABORAT.QUIMICA-FISICA FAC.POLITECN",null,null,null,"11130700","SIC"]
[null,"15130200","IMPLEM. SEGUNDA SALA DE COMPUTO UNI.POSTGRADO-IDH",null,null,null,"11130800","SIC"]
[null,"15130300","EQUIP.LAB.ELECTRO.Y ELECTRIC.UNID.POSTGRADO-IDH",null,null,null,"11130900","SIC"]
[null,"15130400","ACTUALIZACION SALA DE COMP.Y BIBLIOTECA UPFP -IDH",null,null,null,"11310100","SIC"]
[null,"15130500","IMPLEMENTACION SALD DE VIDEO CONF.P.LA UPFP -IDH",null,null,null,"11310200","SIC"]
[null,"15130600","FORTALEC.LAB.ELECTRO.Y ELECTRIC.POSTGRADO F.PO-IDH",null,null,null,"11510200","SIC"]
[null,"15130700","EQUIP.ESPECIAL LAB.DE ELECTRON.Y ELECTRI.UPFP-IDH",null,null,null,"11510300","SIC"]
[null,"15210300","REPO.EQUIP.CENTRO.COMPUT.ESPEC.CARR.CONSTR.CIV-IDH",null,null,null,"11510400","SIC"]
[null,"15210400","EQUIP.LABOR.SUELOS.HORMIGO.ASFAL.CARR.CONT.CIV-IDH",null,null,null,"11510500","SIC"]
[null,"15510300","INSTAL.LABORATORIO SIDEROMECANICO MEC.GRAL. -IDH",null,null,null,"11611100","SIC"]
[null,"15510400","EQUIP.TALLER MAQU.HERRA.METALUG.Y CONVER.A GNC-IDH",null,null,null,"11611200","SIC"]
[null,"15510500","EQUIP.TALLER LAB.DIESEL Y MAQ.HERR.P/CARR.MECA.IDH",null,null,null,"11611300","SIC"]
[null,"15610300","EQUIP.DIRECION.CARR.ELECTRICIDAD INDUSTIAL -IDH",null,null,null,"11611400","SIC"]
[null,"15610400","EQUIPAMIENTO ACADEMICO CARR.ELECTRI.INDUSTRIA-IDH",null,null,null,"11611500","SIC"]
[null,"15610500","IMPLEM.LAB.MAQUI.ELECTRICAS P.CAR.ELEC.INDUS.-IDH",null,null,null,"11611600","SIC"]
[null,"15610600","EQUIP.LAB.SIST ACTUA.MANDOS C/TEC.AIRE COMPRIM.IDH",null,null,null,"11611700","SIC"]
[null,"15710300","EQUIP.LAB.ELEC.C.INSTRUM.DE MEDI.D.SENALES -IDH",null,null,null,"11611800","SIC"]
[null,"15710400","IMPLEMEN.LAB.AUTOMATIZACION INDUSTRIAL - IDH",null,null,null,"11611900","SIC"]
[null,"15710500","IMPLEM.LAB.TRANSMISION DE TV EXPERIMENTAL - IDH",null,null,null,"11612000","SIC"]
[null,"15710600","EQUIP.ACADEMICO Y LABORATORIO CARR.ELECTRONI.-IDH",null,null,null,"11612100","SIC"]
[null,"15810300","ADQUIS.EQUIPOS DE COMPUTACION P/CARR.OFIMA.-IDH",null,null,null,"11710100","SIC"]
[null,"15810500","IMPLEM.LAB. REDES Y TELECOMUNICACION C.OFIMAT-IDH",null,null,null,"11710200","SIC"]
[null,"15810600","EQUIPAM.AULAS TECNOLOGICAS P/CARR.OFIMATICA-IDH",null,null,null,"11710300","SIC"]
[null,"15930100","ADQUI.MEDIOS P/APOYO LOGIST.D.EQUIP.D/CARRERA-IDH",null,null,null,"12000011","SIC"]
[null,"15930200","ADQUIS.MEDIO TRANSPOR.Y EQUIP.CARR.ING.AGRIM.IDH",null,null,null,"12000013","SIC"]
[null,"15930300","IMPLEM.LABORAT.DE GEOMATICA P/ING.AGRIMENSURA-IDH",null,null,null,"12000021","SIC"]
[null,"15930400","EQUIP.ESP.P/LAB.MEDICION-CARR.AGRIMENS.FAC.POLITEC",null,null,null,"12000031","SIC"]
[null,"16000011","OFICINA DECANATO (POLITEC.CAMIRI)",null,null,null,"12000041","SIC"]
[null,"16000013","POSTGRADO FAC. POLITECNICA - CAMIRI",null,null,null,"12111800","SIC"]
[null,"16000021","OFICINA CARRERA TEC.SUP.CONTABILIDAD",null,null,null,"12111900","SIC"]
[null,"16000022","OFICINA CARRERA TEC.SUP.EN AGRICULTURA",null,null,null,"12112100","SIC"]
[null,"16000023","OFICINA CARRERA TEC.SUP.EN GANADERIA",null,null,null,"12112200","SIC"]
[null,"16000024","OFI.CARR.TEC.SUP.EN TRAB.FOREST.Y CONSERV.MED.AMB.",null,null,null,"12112300","SIC"]
[null,"16000026","OFICINA CARRERA DERECHO",null,null,null,"12112400","SIC"]
[null,"16000028","OFICINA CARRERA CIENCIAS DE LA EDUCACION",null,null,null,"12112500","SIC"]
[null,"16000031","OFICINA CARRERA TEC.SUP.PETROLEO",null,null,null,"12112600","SIC"]
[null,"16000033","OFICINA CARRERA INGENIERIA AGROPECUARIA",null,null,null,"12112700","SIC"]
[null,"16000034","OFICINA CARRERA ADMINISTRACION DE EMPRESAS",null,null,null,"12112800","SIC"]
[null,"16000035","OFICINA CARRERA INGENIERIA INFORMATICA",null,null,null,"12112900","SIC"]
[null,"16000036","OFICINA CARRERA CONTADURIA PUBLICA",null,null,null,"12113000","SIC"]
[null,"16000041","OFICINA CARRERA TEC.SUP.AGROPECUARIA",null,null,null,"12113200","SIC"]
[null,"16000043","OFICINA CARR. TEC.SUP.DE MONITOREO SOCIO AMBIENTAL",null,null,null,"12113300","SIC"]
[null,"16000046","OFICINA CARRERA ENFERMERIA",null,null,null,"12113400","SIC"]
[null,"16000051","OFICINA CARRERA TEC.SUP.ENFERMERIA",null,null,null,"12113500","SIC"]
[null,"16000061","OFICINA CARRERA INGS. DEL PETROLEO Y GAS NATURAL",null,null,null,"12113600","SIC"]
[null,"16000071","OFICINA CARRERA DE ODONTOLOGIA",null,null,null,"12113700","SIC"]
[null,"16111200","CONSTR.2 NIV.MOD.I Y II,FAC.INT.CHACO(50%)-IDH",null,null,null,"12113800","SIC"]
[null,"16111300","CONSTRUCCION CENTRO DE COMPUTO FICH - IDH",null,null,null,"12113900","SIC"]
[null,"16111400","MEJOR.IMPER.CUBIER.REMODEL.SIS.ELEC.EDIF.ANT.-IDH",null,null,null,"12114000","SIC"]
[null,"16111500","EMBARDADO PERIMETRAL DE LA FICH -IDH",null,null,null,"12114100","SIC"]
[null,"16111600","CONST.MODULO P/UNID.POSTGRADO DE LA FICH -IDH",null,null,null,"12114200","SIC"]
[null,"16111700","EQUIPA.MODULO D/UNIDAD POSTGRADO DE LA FICH -IDH",null,null,null,"12114300","SIC"]
[null,"16111800","EQUIP.UNI.ADM.DE FICH P/MEJOR.EFIC.PROCES.ADM.IDH",null,null,null,"12114400","SIC"]
[null,"16111900","ADQUIS.EQUIP.COMPUTAC.P/CENTRO COMPU.FICH-IDH",null,null,null,"13000011","SIC"]
[null,"16112000","ADQUIS.BIBLIOG.P/MEJORA.PROCES.ENSENANZ.APREN.IDH",null,null,null,"13000013","SIC"]
[null,"16112100","ADQUIS.500 PUPITRES 2DA PLANTA NUEV.MOD.FICH-IDH",null,null,null,"13000014","SIC"]
[null,"16112300","CONST.AMB.P.CEN.INV.PRAC.AG.GRUIRARAPO CIPAG-IDH",null,null,null,"13000021","SIC"]
[null,"16112500","EQUIP.CEN.INVEST.PRACT.AGRO.GUIRARAPO-CIPAG -IDH",null,null,null,"13000031","SIC"]
[null,"16112600","EQUIPAM.LABORATORIO FISICA FAC.INTEGRAL CHACO- IDH",null,null,null,"13000041","SIC"]
[null,"16112700","EQUIP.LAB.INFORMATICA CARR.ING.PETRO.GAS FICH-IDH",null,null,null,"13000042","SIC"]
[null,"16112800","EQUIP.CENTRO COMP.ESPEC.P/CONT.PUBLI.FINANCIE-IDH",null,null,null,"13000051","SIC"]
[null,"16112900","FORTAL.LABORATORIO DE INFORMATICA P/DOCEN.FICH-IDH",null,null,null,"13000061","SIC"]
[null,"16113000","CONSTRUC.CENTRO DE CAPAC.Y DESARROLLO P.FICH-IDH",null,null,null,"13000071","SIC"]
[null,"16113100","INSTAL.SIS.RIEGO P/GOTEO Y ASPERC EN GUIRARAPO-IDH",null,null,null,"13000081","SIC"]
[null,"16113200","EQUIPAM.AULAS C/PIZARRAS DIGIT.INTERACT.P/FICH-IDH",null,null,null,"13000091","SIC"]
[null,"16113300","EQUIP.P/DESARRO.PRACTICAS DE CAMPO ESTUD.FICH-IDH",null,null,null,"13000092","SIC"]
[null,"16113400","CONST.MODULO AULAS LABORATORIO FAC.INTEGRAL CHACO",null,null,null,"13110200","SIC"]
[null,"16113500","EQUIP.MOD.CENTRAL OF.ADM.ACAD Y POSTGRADO FICH-IDH",null,null,null,"13110300","SIC"]
[null,"16113600","EQUIP.LAB.LODOS C.ING.PETROLEO Y GAS NAT. FAC.I.C.",null,null,null,"13110700","SIC"]
[null,"16113700","MEJ.DE COLISEO DEPORTIVO-FAC.INTEGRAL DEL CHACO",null,null,null,"13110800","SIC"]
[null,"16130100","CONST.CUBIERTA P/VÍAS D.CIRCULACIÓN EN PREDIO-IDH",null,null,null,"13110900","SIC"]
[null,"16460100","EQUIP.LAB.DE PRACTICAS-CARR.ENFERMIRIA-F.I.CHACO",null,null,null,"13111000","SIC"]
[null,"16710100","EQUIP.LABORA.P/PRACTICAS CARR.ODONTOLOGIA FICH-IDH",null,null,null,"13111100","SIC"]
[null,"17000011","OFICINA ESCUELA DE POST GRADO",null,null,null,"13111200","SIC"]
[null,"17110400","IMPLEM.SALA VIDEOCONF.P/USO ESC.Y POSGRA.FAC.IDH",null,null,null,"13111300","SIC"]
[null,"17110500","IMPLANTA.BIBLIOTECA VIRTUAL ESC.POSTGRADO - IDH",null,null,null,"13111400","SIC"]
[null,"18000011","OFICINA TELEVISION UNIVERSITARIA CANAL 11",null,null,null,"13111500","SIC"]
[null,"18110200","RENOV.Y MODERNI.DEL EQUIP.TECN.TVU FASE II - IDH",null,null,null,"13112200","SIC"]
[null,"18110300","FORTALECIMIENTO CANAL 11 TELEVISION.UNIV.UAGRM-IDH",null,null,null,"13112300","SIC"]
[null,"18110400","EQUIP.PARA TV.UNIV.DIGITAL MIGRACION NORMA ISDB-TB",null,null,null,"13112400","SIC"]
[null,"19000011","OFICINA CIPEP \"EL PRADO\"",null,null,null,"13112500","SIC"]
[null,"19000031","CIPEP \"REMANSO PECUARIO\"",null,null,null,"13112600","SIC"]
[null,"19000032","CIPEP \"YABARE PECUARIO\"",null,null,null,"13112700","SIC"]
[null,"19000035","LECHERIA EL PRADO",null,null,null,"13112800","SIC"]
[null,"19000036","P.M.G.B.",null,null,null,"13112900","SIC"]
[null,"20000011","OFICINA INSTITUTO DE INV. \"EL VALLECITO\"",null,null,null,"13113000","SIC"]
[null,"20110100","TRANSF.TECNOLG.SEMILLA MAIZ QPM'S S.J.,MONT.CA.IDH",null,null,null,"13113100","SIC"]
[null,"20110200","MEJ. MANEJO AGRONOMICO DE HORTALIZAS ECO REGION 3",null,null,null,"13113200","SIC"]
[null,"20110300","EQUIP.LABOR.INSTI.INVESTIGACIONES AGRICOLAS -IDH",null,null,null,"13113300","SIC"]
[null,"20110400","APOYO TECNICO A LA MESA DEPART.D.FREJOL COSUDE-IDH",null,null,null,"13113400","SIC"]
[null,"20110500","DESAR. TECNICAS MANEJO Y C.INSECTO PLAGA EN C.MAIZ",null,null,null,"13113500","SIC"]
[null,"21000011","OFICINA HOSPITAL PARA ANIMALES",null,null,null,"13113600","SIC"]
[null,"21000031","OFICINA CLINICA DE SAMAIPATA",null,null,null,"13130100","SIC"]
[null,"21000041","OFICINA \"SAN JAVIER\"",null,null,null,"13130200","SIC"]
[null,"21000051","LABORATORIO CLINICO DE VETERINARIA-LACLIVET HUV.",null,null,null,"13140200","SIC"]
[null,"21110100","CONST.N.GALPON Y MEJ.AMB.IMP.LAB.A.EL PRADO FV-IDH",null,null,null,"13140300","SIC"]
[null,"22000011","OFICINA PROYECTO MEJORAMIENTO GENETICO",null,null,null,"13210400","SIC"]
[null,"23000011","OFICINA CENTRO DE TECNOLOGIA DE ALIMENTOS",null,null,null,"13210500","SIC"]
[null,"23110300","ADQUIS.UNA BALANZA ANALITA P.LABORATORIO CIDTA-IDH",null,null,null,"13210600","SIC"]
[null,"23110400","INVES.DESAR.TEC.P/DETERM.RESID.PLAGUI.FRU.AGUA-IDH",null,null,null,"13310100","SIC"]
[null,"26000011","OFICINA DECANATO FAC. INTEGRAL DE \"ICHILO\"",null,null,null,"13310200","SIC"]
[null,"26000013","POSTGRADO FAC. INTEGRAL DEL ICHILO",null,null,null,"13310300","SIC"]
[null,"26000022","OFICINA CARRERA INGENIERIA COMERCIAL",null,null,null,"13310400","SIC"]
[null,"26000024","OFICINA CARRERA INGENIERIA PETROLERA",null,null,null,"13310500","SIC"]
[null,"26000027","OFICINA CARRERA MEDICINA VETERINARIA Y ZOOTECNIA",null,null,null,"13410100","SIC"]
[null,"26000028","OFICINA CARRERA CIENCIAS DE LA EDUCACION",null,null,null,"13410200","SIC"]
[null,"26000032","OFICINA CARRERA CIENCIAS DE LA COMUNICACION",null,null,null,"13610100","SIC"]
[null,"26000033","OFICINA CARRERA INGENIERIA AGROPECUARIA",null,null,null,"13810200","SIC"]
[null,"26000034","OFICINA CARRERA ADMINISTRACION DE EMPRESAS",null,null,null,"13810300","SIC"]
[null,"26000035","OFICINA CARRERA INGENIERIA INFORMATICA",null,null,null,"13810400","SIC"]
[null,"26000037","OFICINA CARRERA INGENIERIA FINANCIERA",null,null,null,"13810500","SIC"]
[null,"26000046","OFICINA CARRERA ENFERMERIA",null,null,null,"13810600","SIC"]
[null,"26110100","FORTAL.CENTRO DE COMPUTO FAC.INTEGRAL ICHILO - IDH",null,null,null,"13810700","SIC"]
[null,"26110200","CONST.GUARDERIA INFANTIL FAC.INT.ICHILO DS.961-IDH",null,null,null,"13810800","SIC"]
[null,"26110300","EQUIP.PRACTICAS DE CAMPOS DE LOS EST.FIICH-IDH",null,null,null,"13810900","SIC"]
[null,"26110400","CONSTRUCC.COLISEO POLIFUNCIONAL FAC.INT.ICHILO-IDH",null,null,null,"13811000","SIC"]
[null,"26110500","EQUIPAMIENTO DE AULAS P.FAC.INTEGRAL ICHILO-IDH",null,null,null,"13811100","SIC"]
[null,"26110600","EQUIP.BASICO P/2DO.MODULO DE LA FAC.ICHILO-IDH",null,null,null,"13910100","SIC"]
[null,"26110700","EQUIP.GUARDERIA INFANTIL FAC.INT.ICHILO.DS0961-IDH",null,null,null,"13910200","SIC"]
[null,"26110800","MEJ.INFRESTRUCTURA MOD.AULA F.INTEGRAL ICHILO-IDH",null,null,null,"13910300","SIC"]
[null,"26110900","EQUIP.LAB.MULTIFUNCIONAL FAC.INTEGRAL ICHILO-IDH",null,null,null,"13910400","SIC"]
[null,"26111000","CONSTRUCION COMEDOR UNIV.PARA EST. F.I.ICHILO-IDH",null,null,null,"13910500","SIC"]
[null,"26111100","CONST.CERRAMIENTO PERIMETRAL C.UNIV.F.I.ICHILO-IDH",null,null,null,"14000011","SIC"]
[null,"26111200","CONST.MOD.AULAS,BIBLIOTECA Y LAB.PARA FAC.I.ICHILO",null,null,null,"14000013","SIC"]
[null,"26111300","EQUIP.LAB.CARR.ENFERMERIA-FAC.ICHILO,C/SIMULADORES",null,null,null,"14000021","SIC"]
[null,"27000011","OFICINA DECANATO FAC. INTEGRAL \"CHIQUITANA\"",null,null,null,"14000031","SIC"]
[null,"27000013","POSTGRADO FAC. INTEGRAL DEL CHIQUITANA",null,null,null,"14000041","SIC"]
[null,"27000021","OFICINA CARRERA DE ZOOTECNIA",null,null,null,"14000051","SIC"]
[null,"27000026","OFICINA CARRERA DERECHO",null,null,null,"14000061","SIC"]
[null,"27000028","OFICINA CARRERA CIENCIAS DE LA EDUCACION",null,null,null,"14000071","SIC"]
[null,"27000032","OFICINA CARRERA CIENCIAS DE LA COMUNICACION",null,null,null,"14000081","SIC"]
[null,"27000033","OFICINA CARRERA INGENIERIA AGROPECUARIA",null,null,null,"14000082","SIC"]
[null,"27000036","OFICINA CARRERA CONTADURIA PUBLICA",null,null,null,"14000091","SIC"]
[null,"27000038","OFICINA CARRERA ZOOTECNIA",null,null,null,"14000092","SIC"]
[null,"27000039","OFICINA CARRERA OFIMATICA",null,null,null,"14000099","SIC"]
[null,"27110100","EQUIPAMIENTO BASICO P/FAC.INTEGRAL CHIQUITANA-IDH",null,null,null,"14110100","SIC"]
[null,"27110200","EQUIP.PARA PRACT.ACADEMICAS EST.FAC.INT.CHIQUT-IDH",null,null,null,"14110600","SIC"]
[null,"27110300","CONSTRUC.CERRAMIENTO PERIMET.PREDIO FA.INT.CHI-IDH",null,null,null,"14110700","SIC"]
[null,"27110400","EQUIP.DE CENTRO DE COMPUTO P/FAC.INTEG.CGIQUITANA",null,null,null,"14110800","SIC"]
[null,"27110500","CONST.MODU.LAB.,BIBLIOTECA Y OF.P/FAC.INT.CHIQUITA",null,null,null,"14110900","SIC"]
[null,"27110600","EQUIP.BIBLIOTECA ESPEC.P/FAC.INTEGRAL CHIQUITANA",null,null,null,"14111000","SIC"]
[null,"27110700","EQUIP.RED DE DATOS Y CABLEADO ESTRUCTURADO-FAICHI",null,null,null,"14111100","SIC"]
[null,"28000011","OFICINA DECANATO (CS. FARMACEUTICAS Y BIOQUIMICAS)",null,null,null,"14111200","SIC"]
[null,"28000013","POSTGRADO FAC.CS.FARMACEUTICAS Y BIOQUIMICAS",null,null,null,"14111300","SIC"]
[null,"28000021","OFICINA CARRERA BIOQUIMICA",null,null,null,"14111400","SIC"]
[null,"28000041","OFICINA CARRERA FARMACIA",null,null,null,"14111500","SIC"]
[null,"28110100","CONST.MODULO AULAS P/FAC.CS.FARMACE.Y BIOQUIMI-IDH",null,null,null,"14111600","SIC"]
[null,"28110200","DIAGN.Y VALORAC.EXPOSICION POBLAC.CONTAMI.QUIM-IDH",null,null,null,"14111700","SIC"]
[null,"28110300","EQUIPAM.P/CLIMATIZ.LABORAT.FAC.CS.FAR.Y BOIQ.-IDH",null,null,null,"14111800","SIC"]
[null,"28110400","EQUIPAMIEN.MUEBLES P/LABORAT.CARR.BIOQ.Y FARM.-IDH",null,null,null,"14111900","SIC"]
[null,"28110500","CONST.NUEVO MOD.AULAS PARA FAC.CS.FARM.Y BIOQ.-IDH",null,null,null,"14112000","SIC"]
[null,"28110600","EQUIP.ESP.LAB.ENSEÑANZA CAR.BIOQUIM.Y FARMACIA-IDH",null,null,null,"14112100","SIC"]
[null,"28110700","INVEST.PROP.FISQ.NURT.COC.16 VAR FREJL.IIAV-IDH",null,null,null,"14112200","SIC"]
[null,"28110800","EQUIP.COMPL.DEL NUEVO MOD.DE AULAS FAC. CS.F.B.",null,null,null,"14112300","SIC"]
[null,"28110900","EQUIP.P/PRACTICAS ACADEM-EXTENS.-FAC.CS.FARM.Y BIO",null,null,null,"14112400","SIC"]
[null,"28130100","EQUIP.BASICO UNI.POSTGRADO FAC.CS.FAR.Y.BIOQ.-IDH",null,null,null,"14112500","SIC"]
[null,"29000011","OFICINA DECANATO FAC.ING.CS.COMPUT.Y TELECOMUN.",null,null,null,"14112600","SIC"]
[null,"29000013","POSTGRADO FAC.ING.CS.COMPUTAC.Y TELECOMUNICAIONES",null,null,null,"14112700","SIC"]
[null,"29000021","OFICINA CARRERA INGENIERIA EN SISTEMAS",null,null,null,"14112800","SIC"]
[null,"29000031","OFICINA CARRERA ING.EN REDES Y TELECOMUNICACIONES",null,null,null,"14112900","SIC"]
[null,"29000041","OFICINA CARRERA INGENIERIA INFORMATICA",null,null,null,"14113000","SIC"]
[null,"29110100","CONSTRUC.MOD.AULAS.FAC.INGE.EN CS.COMP.Y TELC.-IDH",null,null,null,"14113100","SIC"]
[null,"29110200","EQUIPA.BASICO FAC. ING.CS.DE LA COMPU.Y TELEC.-IDH",null,null,null,"14113200","SIC"]
[null,"29110300","EQUIP.AULAS MODULO.236 FAC.CS.COMPUT.Y TELEC.-IDH",null,null,null,"14113300","SIC"]
[null,"29110400","EQUIP.LAB.DE PROGRAMACION Y WEB FAC.ING.CS.C.Y.T.",null,null,null,"14130100","SIC"]
[null,"29110500","EQUIP.CENTRO COMPUTO FAC.CS.COMPUTACION Y TELEC.",null,null,null,"14310200","SIC"]
[null,"29110600","EQUIP.BASICO P/BIBLIOT.-FAC.CS.COMPUTAC.Y TELECOM",null,null,null,"14310300","SIC"]
[null,"29110700","CONST.ESTACIONAM.VEHICULAR-MOD.236-FAC.CS.COMPUTAC",null,null,null,"14310500","SIC"]
[null,"29130100","EQUIP.BAS.UNI.POSTGRADO FAC.ING.CS.COMP.TELE.-IDH",null,null,null,"14310600","SIC"]
[null,"29210100","DESARR.PLAN ESTRATEGICO C.ING.SISTEMAS.FICCT-IDH",null,null,null,"14310700","SIC"]
[null,"29210200","APOYO PROC.ACRED.CARR.ING.SIST.ANTE S.N.E.A.UB-IDH",null,null,null,"14310800","SIC"]
[null,"29210300","EQUIP.AMBIENT.P/APOYAR PROC.ACRED.CAR.ING.SIST.IDH",null,null,null,"14310900","SIC"]
[null,"30000011","OFICINA DECANATO FAC.INTEGRAL DEL NORESTE",null,null,null,"14311000","SIC"]
[null,"30110100","EQUIP.INFORMATICO CENTRO DE COMP.FAC.INT.NOROESTE",null,null,null,"14311100","SIC"]
[null,"30110200","CONST.MOD.AULAS Y BIBLIOTECA UNIV.FAC.INT.NOROESTE",null,null,null,"14311200","SIC"]
[null,"30110300","FORTALECIMIENTO PROCESO AUTOEV.CARR.ING.AGROP.FIN.",null,null,null,"14311300","SIC"]
[null,"50000011","ILUSTRE CONSEJO UNIVERSITARIO",null,null,null,"14311400","SIC"]
[null,"50000021","CORTE ELECTORAL PERMANENTE",null,null,null,"14410400","SIC"]
[null,"50000031","CONTRALORIA UNIVERSITARIA",null,null,null,"14410700","SIC"]
[null,"50000041","DEFENSOR UNIVERSITARIO",null,null,null,"14410800","SIC"]
[null,"50000051","TRIBUNAL DE JUSTICIA UNIVERSITARIA",null,null,null,"14410900","SIC"]
[null,"50000061","CONSEJO DE CONSULTA SOCIAL",null,null,null,"14411000","SIC"]
[null,"50210100","EQUIP.BASICO P/CORTE ELECTORAL PERMANENTE-IDH",null,null,null,"14411100","SIC"]
[null,"50410100","EQUIPAMIENTO BASICO P/DEFENSORIA UNIVERSITARIA-IDH",null,null,null,"14411200","SIC"]
[null,"50510100","EQUIP.BASICO P/TRIBUNAL SUP.DE APELACION UAGRM-IDH",null,null,null,"14510200","SIC"]
[null,"60110200","DIVERSF.Y FLEXIB. PROGRA.DE FORMACION PROFES-IDH",null,null,null,"14510300","SIC"]
[null,"60110300","APOYO E IMPUL.PROCES.EVAL.ACRED.DE CARR.UAGRM-IDH",null,null,null,"14610200","SIC"]
[null,"60110400","APOYO A PROCES.EVALUAC.Y ACREDIT.DE CARR.UAGRM-IDH",null,null,null,"14610300","SIC"]
[null,"60110500","EQUIP.BASICO.OFIC.DEPENDIENTES DEL RECTORADO-IDH",null,null,null,"14610400","SIC"]
[null,"60111400","AP.IMPULSO A PROC.EVAL.Y ACRED.CARR.UAGRM F.II-IDH",null,null,null,"14610500","SIC"]
[null,"60140100","ACTUALZ.DE INSTRUM.METODOL.P/PROC.AUTO.Y ACRED.IDH",null,null,null,"14610600","SIC"]
[null,"60140200","APOY.IMPLEM.RECOME.RESULTAN.PROC.ACREDIT.CARR.-IDH",null,null,null,"14610700","SIC"]
[null,"60140300","APOY.IMPLE.RECOMEND.RESUL.PROC.ACRED.CAR.UAGRM-IDH",null,null,null,"14710300","SIC"]
[null,"60140400","APOYO PROC.ACREDITACION Y REACREDITACION C.U.-IDH",null,null,null,"14710400","SIC"]
[null,"60140500","EQUIP.BASICO DPTO.DE AUTOEVALUACION Y ACREDITA-IDH",null,null,null,"14710500","SIC"]
[null,"60210200","EQUIP.BASICO UNID.PLANIFICACION,ORG.Y SIST.-IDH",null,null,null,"14810200","SIC"]
[null,"60310400","EQUIP. BASICO PARA LA UNID.AUDITORIA INTERNA-IDH",null,null,null,"14810300","SIC"]
[null,"60640100","EQUIPAMIENTO BASICO PARA EL DPTO. DE TITULOS-IDH",null,null,null,"14810400","SIC"]
[null,"60660100","EQUIP.BASICO P/PERIODICO INSTIT.\"GACETA UNIVE\"-IDH",null,null,null,"14810500","SIC"]
[null,"60811100","INSTALAC.ACCES.INTERNET.WIFI P/ALUM.DOC.Y ADM.-IDH",null,null,null,"14810600","SIC"]
[null,"60811200","EQUIPA.DPTO.TECNOL.INFOR.Y COMUNIC.DE LA UAGRM-IDH",null,null,null,"14910300","SIC"]
[null,"60910300","ACT.EQUIP.TEC.ILUMINACION Y SONIDO PARANINFO-IDH",null,null,null,"14910400","SIC"]
[null,"60920200","DIFUS.TRAB.INVES.DOC.Y EST.UAGRM.ICU.6/06,A.51-IDH",null,null,null,"14910500","SIC"]
[null,"60920300","EQUIP.BASICO P.NUEVA LIBRERIA UNIVERSITARIA -IDH",null,null,null,"14910600","SIC"]
[null,"60920400","EQUIPAMIENTO DE LA IMPRENTA UNIVERSITARIA -IDH",null,null,null,"14920300","SIC"]
[null,"60920500","EQUIP.DPTO.DISENO Y SEG.TECNI.DE EDIT.E.IMPREN-IDH",null,null,null,"14920400","SIC"]
[null,"61110300","PROY.FORTALECIMIENTO GESTION ACAD.E INST.UAGRM-IDH",null,null,null,"14920500","SIC"]
[null,"61210300","EQUIPAMIENTO BASICO PARA DPTO.DESARROLLO H.-IDH",null,null,null,"14920600","SIC"]
[null,"61210400","REPOS.Y MEJOR.SIST.CTRL ASIST.PER.ADM,AUX,DOC.-IDH",null,null,null,"14920700","SIC"]
[null,"61313000","CONST.N.-1 MODULO FAC. CONTADURIA PUBLICA-IDH",null,null,null,"14990500","SIC"]
[null,"61313100","CONST. LABORATORIO FAC.CS. SALUD HUMANA-IDH",null,null,null,"14990600","SIC"]
[null,"61313500","CONST.N.-2 MODULO PARA FAC. HUMANIDADES-IDH",null,null,null,"14990700","SIC"]
[null,"61314900","2DA.REPROG.CONST.MODULO AULAS UNID.ACAD.M.-IDH",null,null,null,"14990800","SIC"]
[null,"61317500","CONSTRUC.MOD.ACADEM.TECNOLOG.UNIV.VALLEGRANDE-IDH",null,null,null,"14991000","SIC"]
[null,"61341000","CONSTRUC.SUBEST.ELECTRICAS CAMPUS CIUD.UNIV.-IDH",null,null,null,"14991100","SIC"]
[null,"61341900","DISENO PROYECTO FINAL CUIDAD UNIVER.(FASE IV)-IDH",null,null,null,"14991200","SIC"]
[null,"61342200","CONSTRUC.CENTRO CAP.Y DESARR.TECNOL.DOC.50%-IDH",null,null,null,"15000011","SIC"]
[null,"61342800","CONSTRUC. 4 AREAS ESTACIONAMI.EN CIUD.UNIVERS.-IDH",null,null,null,"15000013","SIC"]
[null,"61342900","CONSTR.PARQ.UNIV.PRESEV.LA POZA DE LAS ANTAS -IDH",null,null,null,"15000014","SIC"]
[null,"61343000","CONSTR.4TO.MOD-SERV.APOYO ACADEMICO E.CIUD.UNI-IDH",null,null,null,"15000015","SIC"]
[null,"61343100","DESARR.EST.EI/TESA P/CONSTR.EDIF.RECT.VICERR.-IDH",null,null,null,"15000021","SIC"]
[null,"61343200","DESARR.EST.IE/TESA P/CONST.EDIFI.ARCHI.CENTRAL-IDH",null,null,null,"15000031","SIC"]
[null,"61343300","CONSTR.CANCHA FU.7-POLIFUNC.PRAC.DEP.EST.UAGRM.IDH",null,null,null,"15000051","SIC"]
[null,"61343400","CONST.EDIF.P/DPTOS.INFRAEST.MANT,A.FIJO Y C.-IDH",null,null,null,"15000061","SIC"]
[null,"61343500","DESARR.EST.EI/TESA P/CONSTR.EDIF.BIBLIOT.UAGRM-IDH",null,null,null,"15000071","SIC"]
[null,"61343600","CONST.2DA.CANCHA FUTBOL 7 PRACT.DEP.EST.UAGRM-IDH",null,null,null,"15000081","SIC"]
[null,"61343700","CONST.COLISEO POLIDEPORTIVO P/PRAC.ESTUD.UAGRM-IDH",null,null,null,"15000091","SIC"]
[null,"61343800","CONST.EDIF.PARQUEO VERTICAL P/EST.Y DOC.UAGRM-IDH",null,null,null,"15000092","SIC"]
[null,"61350800","CONST.VERJA.PERIMETRAL.AV.CENT.CAMP.UNIV.-IDH",null,null,null,"15000093","SIC"]
[null,"61350900","IMPL.SIST.CONTROL Y SEG.VEHICULAR CAMPUS UNIV.-IDH",null,null,null,"15110700","SIC"]
[null,"61351200","MEJORA.INFRAESTRU.ACADEMICA CONSTRUIDA.CON.REC-IDH",null,null,null,"15110800","SIC"]
[null,"61351300","CONST.PARQUE.ECOLOG.AREA VERD.Y ESPARC.CAMP.U.-IDH",null,null,null,"15110900","SIC"]
[null,"61351400","CONST.VERJA PERIMETRAL,C.VENEZ.MEXICO Y GUATEM-IDH",null,null,null,"15111000","SIC"]
[null,"61351700","EQUIP.AREAS DE ESPARCIM.Y DESCAN.P/EST.CIU.UNI.IDH",null,null,null,"15111100","SIC"]
[null,"61351800","MEJORAM.MODULOS AULAS 233 Y 243 DE CIUD.UNIVER.IDH",null,null,null,"15111200","SIC"]
[null,"61351900","EQUIP.BASICO DPTO.MANTENI.Y MEJORAM.UNI.-IDH",null,null,null,"15111300","SIC"]
[null,"61352000","MEJORAMIENTO INFRAESTRUC.MOD.AULAS 252.UAGRM-IDH",null,null,null,"15111400","SIC"]
[null,"61540400","EQUIPAMIENTO BASICO P/DPTO.CAJA Y TESORERIA-IDH",null,null,null,"15111500","SIC"]
[null,"61710600","AMPLIAC.Y MEJORAM.INFRAESTRUCTURA P/USO ACADEM-IDH",null,null,null,"15111600","SIC"]
[null,"61810100","EQUIP.BAS.CON MED.COMUNICA.P/ADM.PREDIOS.UNIV.-IDH",null,null,null,"15111700","SIC"]
[null,"62000100","IMPLEM. PROGRAMA DE INVERSION PUBLICA UAGRM",null,null,null,"15111800","SIC"]
[null,"62111000","EQUIPAMIENTO BASICO PARA VICERRECTORADO - IDH",null,null,null,"15111900","SIC"]
[null,"62111100","EQUIP.DPTO.EDUC.A DISTANCIA Y TECNOLOG.EDUCATI-IDH",null,null,null,"15112000","SIC"]
[null,"62111200","EQUIP.ESPECIALIZADO P/LA UAGRM SCZ",null,null,null,"15112100","SIC"]
[null,"62210300","DIAGNOSTICO DE LA CALIDAD DE ENSEñANZA UAGRM-IDH",null,null,null,"15112200","SIC"]
[null,"62210400","EQUIP.BIBLIO.FACULT.UAGRM P/INTEGRA Y DIGITAL.-IDH",null,null,null,"15112300","SIC"]
[null,"62210500","EQUIP.P/PRACTICAS.ACAD.ESTUDIANT.FAC.INTEGRALE-IDH",null,null,null,"15112400","SIC"]
[null,"62210600","EQUIP.BASC.UNID.DEP.DE DIRECCION ACRED.Y G.A.-IDH",null,null,null,"15112500","SIC"]
[null,"62210700","CAPACITACION DOC.UAGRM MANEJO AULAS DIGITALES-IDH",null,null,null,"15112600","SIC"]
[null,"62210800","EQUIP.BASICO CENTRO COMPUTO APOYO DOC.DE UAGRM-IDH",null,null,null,"15112700","SIC"]
[null,"62210900","CAPAC.DOCENTE.S/HERRAMI.D.COMPUT.AULAS VIRTUAL-IDH",null,null,null,"15112800","SIC"]
[null,"62230200","EQUIP.BASICO DPTO.ADMISIONES ESTUDIANT.PAB/PSA-IDH",null,null,null,"15130200","SIC"]
[null,"62240400","CONST.2DA FASE.MOD.AULAS P/UN.ACAD.YAPACANI-IDH",null,null,null,"15130300","SIC"]
[null,"62250100","CONSTR.MODULO AULAS UNID.ACAD. GERMAN BUSCH -IDH",null,null,null,"15130400","SIC"]
[null,"62250400","EQUIP.LABOR.SOLD.Y CONCENTRA.C.SIDER.UN.GER.BU-IDH",null,null,null,"15130500","SIC"]
[null,"62250500","FORTAL.CENTRO DE COMPUTO UNI.ACAD.GERMAN BUSCH-IDH",null,null,null,"15130600","SIC"]
[null,"62260100","EQUIP.CENTRO DE COMP.UNID.ACAD.DE ROBORE SC.-IDH",null,null,null,"15130700","SIC"]
[null,"62260200","CONST.MODUL.DE AULAS P/UN.ACADEM.CHIQUITANA-ROBORE",null,null,null,"15210300","SIC"]
[null,"62310200","FORTALECIMI.DPTO.ADMISIONES Y REGISTROS UAGRM-IDH",null,null,null,"15210400","SIC"]
[null,"62310300","EQUIP.BASICO DPTO. DE ADMISIONES Y REGISTROS-IDH",null,null,null,"15510300","SIC"]
[null,"62411000","DESAR.PROY.CONCURSAB.DE INV.CIENTF.TEC.E INNV.-IDH",null,null,null,"15510400","SIC"]
[null,"62411200","APOY.FERIA CIEN.TEC.INNO.EXPOCIENCIA.P.DIF.INV-IDH",null,null,null,"15510500","SIC"]
[null,"62411300","EQUIP.BASICO PARA DIREC.UNIV.DE INVESTIGACION-IDH",null,null,null,"15610300","SIC"]
[null,"62411400","APOYO FERIA CS.TEC.E INOV.DIFUNDIR INV.DOC.Y E-IDH",null,null,null,"15610400","SIC"]
[null,"62411500","EQUIP.P/APOYO ACTIVIDADES INVESTIGACION UAGRM-IDH",null,null,null,"15610500","SIC"]
[null,"62411600","EQUIP.MEDIOS.AUDIV.COMUNICACION ESTUD.UAGRM-IDH",null,null,null,"15610600","SIC"]
[null,"62411700","APOYO EXPOCIENCIA 2014 P/DIFUSION RESULT.INVES-IDH",null,null,null,"15710300","SIC"]
[null,"62411800","APOY.EXPOCIENCIA/15 DIFUS RESULT.INV.DOC Y EST.IDH",null,null,null,"15710400","SIC"]
[null,"62510600","REAL.INTERAC.SOC.SERV.CAPAC.PROD.COMUN.VULN.6V-IDH",null,null,null,"15710500","SIC"]
[null,"62510700","DESAR.DE CAPAC.Y COMP.ARTISTICA EN ORQ.DE CAM.-IDH",null,null,null,"15710600","SIC"]
[null,"62510800","DES.PROG.INTERACCION SOCIAL,SERV.Y C.PROD.MSC-IDH",null,null,null,"15810300","SIC"]
[null,"62510900","DESAR.PROG.INT.SOCIAL.COM.VUL.C/ALTOS.IND.POBR-IDH",null,null,null,"15810500","SIC"]
[null,"62511000","DESARR.PROG.INT.SOCIAL COM.VUL.C/ALTOS IND.POB-IDH",null,null,null,"15810600","SIC"]
[null,"62511100","DESARR.PROG.INT.SOCIAL COM.VUL. C/ALTOS IND.POB.16",null,null,null,"15930100","SIC"]
[null,"62511200","DESARR.PROG.INT.SOCIAL.COM.VUL.C/ALT.IND.POB.-IDH",null,null,null,"15930200","SIC"]
[null,"62511400","DES.PROG.INT.SOCIAL SERV.CAP.PROD.57 C.V.A.I.P-IDH",null,null,null,"15930300","SIC"]
[null,"62511500","DESAR.PROG.INTERAC.SOCIAL.SERV/CAP.G-2018 Y 2020",null,null,null,"15930400","SIC"]
[null,"62530100","EQUIP.INSTITUTO UNIV.DE CAPACITACION POPULAR - IDH",null,null,null,"16000011","SIC"]
[null,"62610100","FORTALEZ.SEGURIDAD RED DE DATOS DE LA UAGRM-IDH",null,null,null,"16000013","SIC"]
[null,"62610200","EQUIP.HARD.Y SOFT.P/SIST.VIRTUAL E INSCRIP. U.-IDH",null,null,null,"16000021","SIC"]
[null,"62610300","EQUIP.HARDWARE ALMACENAMIENTO BD DE LA UAGRM-IDH",null,null,null,"16000022","SIC"]
[null,"62610400","EQUIP.DTIC P/MEJ.PROCES.DATOS-OF.PPTO Y ACTIV.FIJO",null,null,null,"16000023","SIC"]
[null,"62710300","ESTUD.RESTAUR.EDIF.MUSEO HIST.BIBLIO.Y HEMERO-IDH",null,null,null,"16000024","SIC"]
[null,"62710700","DESARR.PROY.D.INVEST.CIENT.TEC.E INNOVA.FA-II-IDH",null,null,null,"16000026","SIC"]
[null,"62710800","EQUIPAM.BASICO MUSEO HISTORIA Y ARCHI.HISTORIC-IDH",null,null,null,"16000028","SIC"]
[null,"62710900","DIFUS.ART.Y ENSAY.REF.HIST.ARQUE.ANTRO.ORIE.BO-IDH",null,null,null,"16000031","SIC"]
[null,"62711000","RESTAURAC.EDIF.MUSEO HISTORIA,EST.TEC.PREINV.IDH",null,null,null,"16000033","SIC"]
[null,"62910100","CONST. NUEVO COMEDOR CIUDAD UNIVERSITARIA - IDH",null,null,null,"16000034","SIC"]
[null,"62910400","EQUIP.DEL CENTRO DE CAPACITACION DOCENTE UAGRM-IDH",null,null,null,"16000035","SIC"]
[null,"62910500","CONSTRUC.GIMNACION UNIVER.P/ESTUDIANTES DS.961-IDH",null,null,null,"16000036","SIC"]
[null,"62910600","EQUIP.P/MEJO.CALIDAD D.PROC.ENSEN.APREN.FAS-II IDH",null,null,null,"16000041","SIC"]
[null,"64110100","APOYO PRACTICAS ACADADE.FAC.INTEGRAL D.VALLES-IDH",null,null,null,"16000043","SIC"]
[null,"64110200","CONST.CERRAM.PERIM.PRED.TECNO.UNIV.VALLEGRANDE-IDH",null,null,null,"16000046","SIC"]
[null,"64110300","ADQUIS.MAQUIN.E IMPLE.AGRIC.P/PRACT.EST.C.AGRO-IDH",null,null,null,"16000051","SIC"]
[null,"64110400","EQUIP.P/REAL.ACTIV.EXTE.E.INV.PRAC.ESTUD.F.VAL-IDH",null,null,null,"16000061","SIC"]
[null,"64110500","EQUIP.CENTROS DE COMPUTO FAC.INTEG.VALLES SC.-IDH",null,null,null,"16000071","SIC"]
[null,"64110600","CONSTRUC.ALBERGUE UNIVERSITARIO FAC.INT.VALLES-IDH",null,null,null,"16111200","SIC"]
[null,"64110700","CONSTRUC.INFRAES.INSTALAC.GRANJ.EXPER.AGRO.FIV-IDH",null,null,null,"16111300","SIC"]
[null,"64110800","EQUIPAMIENTO BASICO P/FAC.VALLES CRUCENOS-IDH",null,null,null,"16111400","SIC"]
[null,"64110900","EQUIP.AULAS PROYECT.MULTIM.INTERACT.FAC.VALLES.IDH",null,null,null,"16111500","SIC"]
[null,"64111000","CONSTRUCC.COLISEO POLIFUNCIONAL FAC.INT.VALLES-IDH",null,null,null,"16111600","SIC"]
[null,"64111100","CONST.COMEDOR UNIV.P/ESTUDIANTES F.I.V.C-IDH",null,null,null,"16111700","SIC"]
[null,"64111200","CONSTR.TINGLADO DEPOSITO MAQ.AGRICOLA F.I.V.C.-IDH",null,null,null,"16111800","SIC"]
[null,"64111300","EQUIP.BASICO-LABORAT.SUELOS-FAC.INT.VALLES CRUCEÑO",null,null,null,"16111900","SIC"]
[null,"64111400","EQUIP.BASICO LAB MICROBIOLOG.Y PARSITOLOG.FIVC-SC",null,null,null,"16112000","SIC"]
[null,"65110900","EQUIPAMIENTO NUEVO MODULOS AULAS FINOR-IDH",null,null,null,"16112100","SIC"]
[null,"65111400","CONSTRUC.2DO.MODULO AULAS P.FAC.INTEGRAL NORTE-IDH",null,null,null,"16112300","SIC"]
[null,"65111500","APOYO PRAC.ACAD.ESTUDIANTES FAC.INTEGRAL NORTE-IDH",null,null,null,"16112500","SIC"]
[null,"65111600","EQUIP.LABOR.ELECTROTECNIA P/ING.INDUSTR.FINOR-IDH",null,null,null,"16112600","SIC"]
[null,"65111700","EQUIP.SALON AULA TIC'S P/ING.COMERCIAL FINOR-IDH",null,null,null,"16112700","SIC"]
[null,"65111800","EQUIP.LABORATORIO REDES CAR.ING.SISTEMAS FINOR-IDH",null,null,null,"16112800","SIC"]
[null,"65111900","CONSTRUC.COMEDOR UNIV.FAC.INT.NORTE. FINOR  - IDH",null,null,null,"16112900","SIC"]
[null,"65112000","CONST.GUARDERIA INFANTIL FINOR (DS.0961) -IDH",null,null,null,"16113000","SIC"]
[null,"65112100","EQUIP.DE AULAS FAC.INT.NORTE C/PROY.MULTIMEDI.-IDH",null,null,null,"16113100","SIC"]
[null,"65112200","EQUIP.TRES NUEVOS CENTROS COMPUTO FA.INT.NORTE-IDH",null,null,null,"16113200","SIC"]
[null,"65112300","CONSTRUCC.COLISEO POLIFUNCIONAL FAC.INTE.NORTE-IDH",null,null,null,"16113300","SIC"]
[null,"65112400","CONSTRUC.3ER.MODULO AULAS P/FAC.INTEGRAL NORTE-IDH",null,null,null,"16113400","SIC"]
[null,"65112500","EQUIP.MOBILIARIO 2DO.MODULO FAC.INTEGRAL NORTE-IDH",null,null,null,"16113500","SIC"]
[null,"65112600","EQUIP.BASICO SEGUNDO MODULO FAC.INTEGRAL NORTE-IDH",null,null,null,"16113600","SIC"]
[null,"65112700","EQUIP.GUARDERIA INFANTIL FAC.INT.NORTE DS.0961-IDH",null,null,null,"16113700","SIC"]
[null,"65112800","CONST.C.PERIMETRAL GUARDERIA INF.Y COMEDOR FIN-IDH",null,null,null,"16130100","SIC"]
[null,"66011400","EQUIPAM.BIBLIOTECA ESPECIALIZ.P.FAC.CONTADURIA-IDH",null,null,null,"16460100","SIC"]
[null,"66111300","CONSTRUC.2DO.MODULO AULAS FAC.CONTADUR.PUBLICA-IDH",null,null,null,"16710100","SIC"]
[null,"66111400","EQUIPAM.BIBLIOTECA ESPECIALIZ.P.FAC.CONTADURIA-IDH",null,null,null,"17000011","SIC"]
[null,"66111500","CAPACIT.DOC.FAC.CONT.PUB.E.USO AULAS VIRTUALES-IDH",null,null,null,"17110400","SIC"]
[null,"66111600","EQUIP.COMPLEMT.MODULO AULAS 225.FAC.CONT.PUBL.-IDH",null,null,null,"17110500","SIC"]
[null,"66111700","FOTALECIM.DE CENTROS DE COMPUTO FAC.CONTA.PUB.-IDH",null,null,null,"18000011","SIC"]
[null,"66111800","EQUIP.AULAS C/PIZARRAS DIGIT.INTER.MOD-213.FCP-IDH",null,null,null,"18110200","SIC"]
[null,"66111900","EQUIP.3 AULAS CON MEDIOS INFO. FAC.C.PUBLICA-IDH",null,null,null,"18110300","SIC"]
[null,"66112000","EQUIP.BASICO MOD.AULAS 214 FAC.CONTADURIA P. -IDH",null,null,null,"18110400","SIC"]
[null,"66112100","EQUIP.DE RED DE DATOS MOD.214 DE FAC.CONTADURIA P.",null,null,null,"19000011","SIC"]
[null,"66112200","EQUIP.BASICO COMPLEMENTARIO 2DO.MOD.DE AULAS F.C.P",null,null,null,"19000031","SIC"]
[null,"66112300","EQUIP.COMPLEMENTARIO P.MOD.DE AULAS 214-FAC.CONTAD",null,null,null,"19000032","SIC"]
[null,"66112400","EQUIP.BIBLIOTECA ESPECIALIZADA FAC. CONTADURIA P.",null,null,null,"19000035","SIC"]
[null,"66130100","EQUIP.8 AULAS C/PIZAR.DIGITAL P/POSTGRADO FCP-IDH",null,null,null,"19000036","SIC"]
[null,"66130200","EQUIPAM.AULAS P/UNI.POSTGRADO FAC.CONT.PUBLIC.-IDH",null,null,null,"20000011","SIC"]
[null,"66130300","EQUIP.CENTRO.COMP.ESPECIA.POSTGRADO.FAC.CONTAD-IDH",null,null,null,"20110100","SIC"]
[null,"66210500","APOYO PROCES.ACRED.CAR.CONTA.PUBLICA ANT.SNEAU-IDH",null,null,null,"20110200","SIC"]
[null,"67110400","CONSTR.EDIF.P/FAC.CS.HABITAT,DIS.Y ARTE.-IDH",null,null,null,"20110300","SIC"]
[null,"67110800","EQUIP.MOBIL.EDIF.NUEVO FASE I FAC.CS.HABITAT-IDH",null,null,null,"20110400","SIC"]
[null,"67110900","EQUIPAMIENTO INFORMATICO P/FAC.CS. DEL HABITAT-IDH",null,null,null,"20110500","SIC"]
[null,"67111000","EQUIP.BASICO NUEVO MOD.FAC.CS.HABITAT.DISEñO Y A.",null,null,null,"21000011","SIC"]
[null,"67111100","EQUIP.PROY.MULTIMEDIA FAC.CS.HABITAT DISEñO Y ARTE",null,null,null,"21000031","SIC"]
[null,"67130100","EQUIP.BASICO P.UNID.POSTGRADO FAC.CS.HABITAT -IDH",null,null,null,"21000041","SIC"]
[null,"67310100","EQUIP.LAB.SIS.INFORM.GEOGRAF.P.PLANIF.TERRITO.-IDH",null,null,null,"21000051","SIC"]
[null,"67310200","EQUIP.P/PRACT.ACAD.DE PLANIF.TERRITORIAL SC -IDH",null,null,null,"21110100","SIC"]
[null,"68113700","PROCESO EVALUA.Y ACREDITACION CARRS.FAC.HUM.IDH",null,null,null,"22000011","SIC"]
[null,"68115200","IMPLEM.Y EQUIP.CAMARA GESELL FAC.HUM.CA.PSCI.-IDH",null,null,null,"23000011","SIC"]
[null,"68115300","CONSTRUCCION 3ER.MODULO AULAS FAC. HUMANIDADES-IDH",null,null,null,"23110300","SIC"]
[null,"68115700","EQUIP.CENTRO.COMPUTO CARR.CS.EDUCAC.DE MONTERO-IDH",null,null,null,"23110400","SIC"]
[null,"68115800","EQUIPA.SEGUNDO.MOD-AULAS 220-B FAC.HUMANIDADES-IDH",null,null,null,"26000011","SIC"]
[null,"68115900","EQUIPA.BIBLIOTECA ESPECIALIZADA FAC.HUMANIDADE-IDH",null,null,null,"26000013","SIC"]
[null,"68116000","EQUIP.B.AULAS.PIZAR.DIG.INTER.MOD.254-263.POST-IDH",null,null,null,"26000022","SIC"]
[null,"68116100","FORTAL.OBS.INF.JUV.DIF.FORM.POL.PUB.NINEZ.ADOL-IDH",null,null,null,"26000024","SIC"]
[null,"68116200","EQUIP.COMP.MOD.AULAS 254 Y 263 FAC.HUMANI.-IDH",null,null,null,"26000027","SIC"]
[null,"68116300","EQUIP.COMPLEMEN.BIBLIOT.CENTRAL FAC.HUMANID.IDH",null,null,null,"26000028","SIC"]
[null,"68116400","EQUIP.CENTRO.PROD.Y DOCUM.AUDIOV.FAC.HUMANID.IDH",null,null,null,"26000032","SIC"]
[null,"68116500","INVES.DE LAS METODOLOG.D.ENSENA.D.LENG.BESIRO.IDH",null,null,null,"26000033","SIC"]
[null,"68116600","EQUIPA.BASICO JEFA.CARR.PSICOLOGIA FAF.HUMAN.-IDH",null,null,null,"26000034","SIC"]
[null,"68116700","MEJOR.NIV.PERTINENCIA PROG.ACAD.CAR.EDUC.F.HUM-IDH",null,null,null,"26000035","SIC"]
[null,"68116800","APOYO.PROCESO.ACREDIT.CARR.PSICOLOGIA ANTE SUB-IDH",null,null,null,"26000037","SIC"]
[null,"68116900","A.PROC.ACRED.C.SOCIOLOGIA ANTE S.E.A.UNIV.B.-IDH",null,null,null,"26000046","SIC"]
[null,"68117000","EQUIP.AMBIENTE APOYO PROC.ACRED.C.SOCIOLOGIA-IDH",null,null,null,"26110100","SIC"]
[null,"68117100","EQUIP.BASICO AULAS E ISLAS ED.MOD.262-263 FAC. HUM",null,null,null,"26110200","SIC"]
[null,"68117200","EQUIP.APOYO PRACT.ACADEMICA DE CAMPO CARR.FAC.HUM.",null,null,null,"26110300","SIC"]
[null,"68117300","EQUIP.ESPECIALIZADO SET TV MOD.263 CARR.CS.COM.F.H",null,null,null,"26110400","SIC"]
[null,"68117400","EQUIP.BASICO DE AUDITORIO MOD.262,FAC.HUMANIDADES",null,null,null,"26110500","SIC"]
[null,"69110500","CONST.LAB.DE ENSEñANZA CARR.BIOQ.,FAR.Y ENF.-IDH",null,null,null,"26110600","SIC"]
[null,"69111000","EQUIP.LAB.BROMATOLOGIA Y NUTRICION FAC.S.SALUD-IDH",null,null,null,"26110700","SIC"]
[null,"69111100","EQUIP.LAB.INVS.LINEA PROD.NATUR.ORIGEN VEGETAL-IDH",null,null,null,"26110800","SIC"]
[null,"69111200","EQUIP.LAB.INV.FCSH.E/LINEA BIOTEC.HISTOC.INMUN-IDH",null,null,null,"26110900","SIC"]
[null,"69111300","DOTAC.CLINICA MOVIL P/CAR.MEDICINA Y ENFERMER-IDH",null,null,null,"26111000","SIC"]
[null,"69111400","EQUIPAMIENTO BASICO FAC.CS. DE LA SALUD HUMANA-IDH",null,null,null,"26111100","SIC"]
[null,"69111500","CONSTRUCCION HOSPITAL UNIV.-UAGRM (ELAB.E.I.)IDH",null,null,null,"26111200","SIC"]
[null,"69111600","CONST.MOD.AULAS Y LAB.PARA FAC.CS.SALUD H.-IDH",null,null,null,"26111300","SIC"]
[null,"69111700","EQUIPAM.BIBLIOT.CARR.MEDICINA Y ODONTOLOGIA-IDH",null,null,null,"27000011","SIC"]
[null,"69111800","EQUIP.COMPLEMENTARIO 4TO MOD.DE AULAS FAC.CS.S.H.",null,null,null,"27000013","SIC"]
[null,"69111900","CONST.CORREDORES DE CONEXION-FAC.CS.SALUD HUMANA",null,null,null,"27000021","SIC"]
[null,"69311100","APOYO PROCESO AUTOEVAL.Y ACREDITACIÓN C.ENF.-IDH",null,null,null,"27000028","SIC"]
[null,"69311200","ADQ.EQUI.SONIDO P/ACTI.ACADEM.E.INTE.SOC.ENFER-IDH",null,null,null,"27000032","SIC"]
[null,"69311300","EQUIP.LAB.PRACT.MEDICO QUIRURGICO CAR.ENFERM-IDH",null,null,null,"27000033","SIC"]
[null,"69311400","EQUIPAM.DE AULAS.CARR.ENFERMERIA.FAC.CS.SALUD-IDH",null,null,null,"27000036","SIC"]
[null,"69311500","EQUIP.SALA AUDIOVISUAL Y COMPUTO P/C.ENFERMER.IDH",null,null,null,"27110100","SIC"]
[null,"69311600","EQUIPAM.COMPLEMENT.BIBLIOTECA CAR.ENFERM.FCSH-IDH",null,null,null,"27110200","SIC"]
[null,"69311700","A.PROCESO REACREDITACION C.ENFERMERIA A MERCOSUR",null,null,null,"27110300","SIC"]
[null,"69510800","EQUIP.LAB.FISIOLOGIA Y MEDIC.INTER.P/CAR.MED.-IDH",null,null,null,"27110400","SIC"]
[null,"69510900","PROY.EQUIP.AULAS CARR.MEDICINA DE LA F.C.S.H-IDH",null,null,null,"27110500","SIC"]
[null,"69511000","EQUIPAMIENTO.SALA COMPUTO CARR.MEDICINA FCSH.-IDH",null,null,null,"27110600","SIC"]
[null,"69511100","EQUIP.BASICO ANFITEATRO CARR.MEDICINA FAC.SAL-IDH",null,null,null,"27110700","SIC"]
[null,"69511200","EQUIP.LAB.ACAD.HISTO.EMBRIO.PATOL.FISIO.HUMANA-IDH",null,null,null,"28000011","SIC"]
[null,"69511300","APOYO PROCES.ACREDIT.CAR.MEDICINA ANTE EL SUB-IDH",null,null,null,"28000013","SIC"]
[null,"69511400","EQUIP.LABS. CARR.MEDICINA FAC. CS DE LA SALUD HUM.",null,null,null,"28000021","SIC"]
[null,"69511500","APOYO PROC.ACRED.CARR.MEDICINA F.CS.S.HUM.MERCOSUR",null,null,null,"28000041","SIC"]
[null,"69610100","EQUIP.LAB.PRACT.ODONT.FAC.CS.SALUD-IDH",null,null,null,"28110100","SIC"]
[null,"69610200","EQUIP.A.CLINICA C.ODONTOLOGIA F.CS.SALUD H.MOD.281",null,null,null,"28110200","SIC"]
[null,"69610300","EQUIP.LAB.ODONTOLOGIA-FAC.CS.SALUD HUMANA",null,null,null,"28110300","SIC"]
[null,"71000001","DESCONCENTRACIÓN ACADÉMICA DS.1323",null,null,null,"28110400","SIC"]
[null,"71000002","ADQUIS.CAMIONETA DOBLE CABINA 4X4 FAC. CHIQUITANA",null,null,null,"28110500","SIC"]
[null,"71000003","FORM.PLAN DESARR.ESTRAT.FAC.INTEG.VALLES CRUCEñOS",null,null,null,"28110600","SIC"]
[null,"71000004","EQUIPAMIENTO OF.ADMINISTRATIVAS Y ACADEMICAS FICH",null,null,null,"28110700","SIC"]
[null,"71000005","EQUIP.RESIDEN.ESTUDIANTIL.CENT.EXPER.AGRO.FINI-IDH",null,null,null,"28110800","SIC"]
[null,"71000006","EQUIP.BASICO NUE.MOD.AULAS 1-PISO.GERMAN BUSCH.IDH",null,null,null,"28110900","SIC"]
[null,"71000007","EQUIPAMIENTO OFIC.DIRECCIONES CARR.FINOR -IDH",null,null,null,"28130100","SIC"]
[null,"71000008","INST.ACOMETIDA TRIFASICA CAMPUS UNIVERSITARIO-IDH",null,null,null,"29000011","SIC"]
[null,"71000009","UNID.ACADEMICA GERMAN BUSCH(EQUIP.LAB.Y AULAS)",null,null,null,"29000013","SIC"]
[null,"71000011","OFICINA CARRERA INGENIERIA EN SISTEMAS",null,null,null,"29000021","SIC"]
[null,"71000012","OFICINA CARRERA CONTADURIA PUBLICA",null,null,null,"29000031","SIC"]
[null,"71000013","OFICINA CARRERA INGENIERIA AGROPECUARIA",null,null,null,"29000041","SIC"]
[null,"71000014","FACULTAD INTEGRAL DEL CHACO",null,null,null,"29110100","SIC"]
[null,"71000015","FAC.INT.DEL NORTE FINOR (EQUIP.AULAS C/PROY M.)",null,null,null,"29110200","SIC"]
[null,"71000016","FAC.INTEGRAL VALLES CRUCEñOS(EQUIP.ALBERGUE EST.)",null,null,null,"29110300","SIC"]
[null,"71000017","FACULTAD INTEGRAL DE ICHILO (FINI)",null,null,null,"29110400","SIC"]
[null,"71000018","FACULTAD INTEGRAL CHIQUITANA (FAICHI)",null,null,null,"29110500","SIC"]
[null,"71000019","FAC.INT.DEL NOROESTE FINE (EQUIP.MUEBLES C.COMP.)",null,null,null,"29110600","SIC"]
[null,"71000021","OFICINA CARRERA INGENIERIA COMERCIAL",null,null,null,"29110700","SIC"]
[null,"71000022","OFICINA CARRERA INGENIERIA INDUSTRIAL",null,null,null,"29130100","SIC"]
[null,"71000023","OFICINA CARRERA INGENIERIA PETROLERA",null,null,null,"29210100","SIC"]
[null,"71000024","OFICINA CARRERA INGENIERIA EN SISTEMAS",null,null,null,"29210200","SIC"]
[null,"71000025","OFICINA CARRERA DERECHO",null,null,null,"29210300","SIC"]
[null,"71000026","OFICINA CARRERA MEDICINA VETERINARIA Y ZOOTECNIA",null,null,null,"30000011","SIC"]
[null,"71000027","OFICINA CARRERA CIENCIAS DE LA EDUCACION",null,null,null,"30110100","SIC"]
[null,"71000028","OFICINA CARRERA MEDICINA",null,null,null,"30110200","SIC"]
[null,"71000029","OFICINA CARRERA CONTADURIA PUBLICA",null,null,null,"30110300","SIC"]
[null,"71000031","OFICINA CARRERA ENFERMERIA",null,null,null,"50000011","SIC"]
[null,"71000041","UNIDAD ACADEMICA DE SAN JULIAN",null,null,null,"50000021","SIC"]
[null,"71000051","UNID.ACAD.PROVINCIAL\"EL TORNO\" (FORT.CENTRO COMP.)",null,null,null,"50000031","SIC"]
[null,"71000052","UNIDAD ACADEMICA PROVINCIAL \"PUERTO SUAREZ\"",null,null,null,"50000041","SIC"]
[null,"71000061","OFICINA CARRERA DERECHO",null,null,null,"50000051","SIC"]
[null,"71000062","OFICINA CARRERA CIENCIAS DE LA EDUCACION",null,null,null,"50000061","SIC"]
[null,"71000063","OFICINA CARRERA INGENIERIA AGROPECUARIA",null,null,null,"50210100","SIC"]
[null,"71000064","OFICINA CARRERA ADMINISTRACION DE EMPRESAS",null,null,null,"50410100","SIC"]
[null,"71000065","OFICINA CARRERA INGENIERIA INFORMATICA",null,null,null,"50510100","SIC"]
[null,"71000066","OFICINA CARRERA CONTADURIA PUBLICA",null,null,null,"60110200","SIC"]
[null,"71000067","OFICINA CARR. TEC.SUP.DE MONITOREO SOCIO AMBIENTAL",null,null,null,"60110300","SIC"]
[null,"71000068","OFICINA CARRERA TEC.SUP.ENFERMERIA",null,null,null,"60110400","SIC"]
[null,"71000069","OFICINA CARRERA INGS. DEL PETROLEO Y GAS NATURAL",null,null,null,"60110500","SIC"]
[null,"71000071","OFICINA CARRERA DE ODONTOLOGIA",null,null,null,"60111400","SIC"]
[null,"71000072","OFICINA CARRERA ENFERMERIA",null,null,null,"60140100","SIC"]
[null,"71000081","OFICINA CARRERA INGENIERIA PETROLERA",null,null,null,"60140200","SIC"]
[null,"71000082","OFICINA CARRERA CIENCIAS DE LA EDUCACION",null,null,null,"60140300","SIC"]
[null,"71000083","OFICINA CARRERA INGENIERIA AGROPECUARIA",null,null,null,"60140400","SIC"]
[null,"71000084","OFICINA CARRERA ADMINISTRACION DE EMPRESAS",null,null,null,"60140500","SIC"]
[null,"71000085","OFICINA CARRERA INGENIERIA INFORMATICA",null,null,null,"60210200","SIC"]
[null,"71000086","OFICINA CARRERA ENFERMERIA",null,null,null,"60310400","SIC"]
[null,"71000091","OFICINA DECANATO FAC. INTEGRAL \"CHIQUITANA\"",null,null,null,"60640100","SIC"]
[null,"71000093","EQUIP.GRANJA.EXP.AGROP.FA.INT.VALLES LECH-CRIA-IDH",null,null,null,"60660100","SIC"]
[null,"71000094","UNID.ACAD.ROBORE (FORTALECIMIENTO CENTRO COMPUTO)",null,null,null,"60811100","SIC"]
[null,"71000099","OTROS SERVICIOS - DS 1323-12",null,null,null,"60811200","SIC"]
[null,"72000001","BECAS SOCIO ECONÓMICAS, ACADÉMICAS Y DE EXT.UNIV.",null,null,null,"60910300","SIC"]
[null,"73000001","INFRAESTRUCTURA Y EQUIPAMIENTO (ALBERG, GUARDERIA)",null,null,null,"60920200","SIC"]
[null,"73000002","EQUIPAM.BASICO DEL GIMNASION UNIVERS.P/ESTUDIA.IDH",null,null,null,"60920300","SIC"]
[null,"73000100","CONST.E.INSTALA.BEBEDEROS AGUA FILTRA.P/ESTUD.-IDH",null,null,null,"60920400","SIC"]
[null,"73000200","CONST.COMEDOR UNIV.EN LA FAC.INTEGRAL NOROESTE-IDH",null,null,null,"60920500","SIC"]
[null,"73000300","EQUIP.GIMNASIO UNIV.P.ESTUD.UAGRM DS0961-IDH",null,null,null,"61110300","SIC"]
[null,"73000500","CONST.COMEDOR UNIVERSITARIO FAC.INT.CHIQUITANIA",null,null,null,"61210300","SIC"]
[null,"73000600","MEJ.Y AMPLIACION DE LA GUARDERIA UNIV.\"GABRIELITO\"",null,null,null,"61210400","SIC"]
[null,"74000001","SEGURO SOCIAL DE SALUD",null,null,null,"61313000","SIC"]
[null,"75000001","MANTENIMIENTO DE LA INVERSIÓN",null,null,null,"61313100","SIC"]
[null,"76000001","CULTURA, DEPORTES Y EXTENSIÓN UNIVERSITARIA",null,null,null,"61313500","SIC"]
[null,"77000001","COMPENSACION DIPLOMAS DE BACHILLER",null,null,null,"61314900","SIC"]
[null,"78000001","COMPENSACION DIPLOMAS ACADÉMICOS Y TÍT.EN PROV.NAL",null,null,null,"61317500","SIC"]
[null,"80112000","MEJOR.INFRAESTRUC.MODULO DE AULAS 283 CIU.UNI.-IDH",null,null,null,"61341000","SIC"]
[null,"80112100","EQUIP.P/PRACT.ACAD.ESTUD.FCJPS Y CONSULT.JURID.IDH",null,null,null,"61341900","SIC"]
[null,"80112200","EQUIP.B.SALONES CONF.MOD.185 Y 283 FCJPS Y RI-IDH",null,null,null,"61342200","SIC"]
[null,"80112300","CONSTRUC.MODULO AULAS FAC.CS. JURD.POLIT.SOC.-IDH",null,null,null,"61342800","SIC"]
[null,"80112400","EQUIP.COMPLEMENTARIO 3ER.MOD.FCJPS Y RELACION INT.",null,null,null,"61342900","SIC"]
[null,"80112500","EQUIP.BASICO MODULO 284 FAC.CS.JUR,POLIT,SOCIALES",null,null,null,"61343000","SIC"]
[null,"80112600","CONST.CORREDORES DE CONEXION C/AREAS VERDES FCJPS",null,null,null,"61343100","SIC"]
[null,"80310100","APOYO AL PROCESO DE ACREDIT.CARR.DE DERECHO-IDH",null,null,null,"61343200","SIC"]
[null,"80410600","DESARR.PLAT.VIRTUAL E.CALIDAD REND.ACAD. C.C.P-IDH",null,null,null,"61343300","SIC"]
[null,"80410700","AUTOEV.Y FORMUL.PLAN.DESS.ESTRAT.CARR.CS.POLT.-IDH",null,null,null,"61343400","SIC"]
[null,"80410800","APOYO PROC.D.ACREDIT.CAR.CS.POLIT Y ADM.PUBLIC-IDH",null,null,null,"61343500","SIC"]
[null,"80410900","REPOS.EQUIPOS CENTRO COMPUTO.CARR.CS.POLIT.-IDH",null,null,null,"61343600","SIC"]
[null,"80510100","MEJ.NIVEL PERTINENCIA PROG.ACAD. C.T.S. FCJPS-IDH",null,null,null,"61343700","SIC"]
[null,"80510200","EQUIP.AULAS C/PIZARR.DIG.INTERAC.C.TRAB.SOCIAL-IDH",null,null,null,"61343800","SIC"]
[null,"80510300","IMPLEM.CENTRO.COMPUT.CAR.TRAB.SOCIAL.F.CS.JUR.-IDH",null,null,null,"61350800","SIC"]
[null,"80510400","EQUIP.MATERIAL BIBLIOGRA.CARR.TRABAJ.SOC.FCJPS-IDH",null,null,null,"61350900","SIC"]
[null,"80510500","APOYO PROC.ACRED.CARR.TRAB.S.ANTE SIST.NAL.E.A-IDH",null,null,null,"61351200","SIC"]
[null,"80510600","EQUIP.MATERIAL BIBLIOGRAF.CARR.TRAB.SOCIL.F.CS.JPS",null,null,null,"61351300","SIC"]
[null,"97000001","PROVISIONES PARA GASTOS DE FUNCIONAMIENTO",null,null,null,"61351400","SIC"]
[null,"98000001","TRANSFERENCIAS CORRIENTES",null,null,null,"61351700","SIC"]
[null,"99000001","DEUDA PUBLICA CORRIENTE",null,null,null,"61351800","SIC"]
[null,"99000002","DEUDA PUBLICA-IMPL.CENTRO GEOESPACIAL BIODIV.BOL.",null,null,null,"61351900","SIC"]
[null,null,null,null,null,null,"61352000","SIC"]
[null,null,null,null,null,null,"61540400","SIC"]
[null,null,null,null,null,null,"61710600","SIC"]
[null,null,null,null,null,null,"61810100","SIC"]
[null,null,null,null,null,null,"62000100","SIC"]
[null,null,null,null,null,null,"62111000","SIC"]
[null,null,null,null,null,null,"62111100","SIC"]
[null,null,null,null,null,null,"62111200","SIC"]
[null,null,null,null,null,null,"62210300","SIC"]
[null,null,null,null,null,null,"62210400","SIC"]
[null,null,null,null,null,null,"62210500","SIC"]
[null,null,null,null,null,null,"62210600","SIC"]
[null,null,null,null,null,null,"62210700","SIC"]
[null,null,null,null,null,null,"62210800","SIC"]
[null,null,null,null,null,null,"62210900","SIC"]
[null,null,null,null,null,null,"62230200","SIC"]
[null,null,null,null,null,null,"62240400","SIC"]
[null,null,null,null,null,null,"62250100","SIC"]
[null,null,null,null,null,null,"62250400","SIC"]
[null,null,null,null,null,null,"62250500","SIC"]
[null,null,null,null,null,null,"62260100","SIC"]
[null,null,null,null,null,null,"62260200","SIC"]
[null,null,null,null,null,null,"62310200","SIC"]
[null,null,null,null,null,null,"62310300","SIC"]
[null,null,null,null,null,null,"62411000","SIC"]
[null,null,null,null,null,null,"62411200","SIC"]
[null,null,null,null,null,null,"62411300","SIC"]
[null,null,null,null,null,null,"62411400","SIC"]
[null,null,null,null,null,null,"62411500","SIC"]
[null,null,null,null,null,null,"62411600","SIC"]
[null,null,null,null,null,null,"62411700","SIC"]
[null,null,null,null,null,null,"62411800","SIC"]
[null,null,null,null,null,null,"62510600","SIC"]
[null,null,null,null,null,null,"62510700","SIC"]
[null,null,null,null,null,null,"62510800","SIC"]
[null,null,null,null,null,null,"62510900","SIC"]
[null,null,null,null,null,null,"62511000","SIC"]
[null,null,null,null,null,null,"62511100","SIC"]
[null,null,null,null,null,null,"62511200","SIC"]
[null,null,null,null,null,null,"62511400","SIC"]
[null,null,null,null,null,null,"62511500","SIC"]
[null,null,null,null,null,null,"62530100","SIC"]
[null,null,null,null,null,null,"62610100","SIC"]
[null,null,null,null,null,null,"62610200","SIC"]
[null,null,null,null,null,null,"62610300","SIC"]
[null,null,null,null,null,null,"62610400","SIC"]
[null,null,null,null,null,null,"62710300","SIC"]
[null,null,null,null,null,null,"62710700","SIC"]
[null,null,null,null,null,null,"62710800","SIC"]
[null,null,null,null,null,null,"62710900","SIC"]
[null,null,null,null,null,null,"62711000","SIC"]
[null,null,null,null,null,null,"62910100","SIC"]
[null,null,null,null,null,null,"62910400","SIC"]
[null,null,null,null,null,null,"62910500","SIC"]
[null,null,null,null,null,null,"62910600","SIC"]
[null,null,null,null,null,null,"64110100","SIC"]
[null,null,null,null,null,null,"64110200","SIC"]
[null,null,null,null,null,null,"64110300","SIC"]
[null,null,null,null,null,null,"64110400","SIC"]
[null,null,null,null,null,null,"64110500","SIC"]
[null,null,null,null,null,null,"64110600","SIC"]
[null,null,null,null,null,null,"64110700","SIC"]
[null,null,null,null,null,null,"64110800","SIC"]
[null,null,null,null,null,null,"64110900","SIC"]
[null,null,null,null,null,null,"64111000","SIC"]
[null,null,null,null,null,null,"64111100","SIC"]
[null,null,null,null,null,null,"64111200","SIC"]
[null,null,null,null,null,null,"64111300","SIC"]
[null,null,null,null,null,null,"64111400","SIC"]
[null,null,null,null,null,null,"65110900","SIC"]
[null,null,null,null,null,null,"65111400","SIC"]
[null,null,null,null,null,null,"65111500","SIC"]
[null,null,null,null,null,null,"65111600","SIC"]
[null,null,null,null,null,null,"65111700","SIC"]
[null,null,null,null,null,null,"65111800","SIC"]
[null,null,null,null,null,null,"65111900","SIC"]
[null,null,null,null,null,null,"65112000","SIC"]
[null,null,null,null,null,null,"65112100","SIC"]
[null,null,null,null,null,null,"65112200","SIC"]
[null,null,null,null,null,null,"65112300","SIC"]
[null,null,null,null,null,null,"65112400","SIC"]
[null,null,null,null,null,null,"65112500","SIC"]
[null,null,null,null,null,null,"65112600","SIC"]
[null,null,null,null,null,null,"65112700","SIC"]
[null,null,null,null,null,null,"65112800","SIC"]
[null,null,null,null,null,null,"66011400","SIC"]
[null,null,null,null,null,null,"66111300","SIC"]
[null,null,null,null,null,null,"66111400","SIC"]
[null,null,null,null,null,null,"66111500","SIC"]
[null,null,null,null,null,null,"66111600","SIC"]
[null,null,null,null,null,null,"66111700","SIC"]
[null,null,null,null,null,null,"66111800","SIC"]
[null,null,null,null,null,null,"66111900","SIC"]
[null,null,null,null,null,null,"66112000","SIC"]
[null,null,null,null,null,null,"66112100","SIC"]
[null,null,null,null,null,null,"66112200","SIC"]
[null,null,null,null,null,null,"66112300","SIC"]
[null,null,null,null,null,null,"66112400","SIC"]
[null,null,null,null,null,null,"66130100","SIC"]
[null,null,null,null,null,null,"66130200","SIC"]
[null,null,null,null,null,null,"66130300","SIC"]
[null,null,null,null,null,null,"66210500","SIC"]
[null,null,null,null,null,null,"67110400","SIC"]
[null,null,null,null,null,null,"67110800","SIC"]
[null,null,null,null,null,null,"67110900","SIC"]
[null,null,null,null,null,null,"67111000","SIC"]
[null,null,null,null,null,null,"67111100","SIC"]
[null,null,null,null,null,null,"67130100","SIC"]
[null,null,null,null,null,null,"67310100","SIC"]
[null,null,null,null,null,null,"67310200","SIC"]
[null,null,null,null,null,null,"68113700","SIC"]
[null,null,null,null,null,null,"68115200","SIC"]
[null,null,null,null,null,null,"68115300","SIC"]
[null,null,null,null,null,null,"68115700","SIC"]
[null,null,null,null,null,null,"68115800","SIC"]
[null,null,null,null,null,null,"68115900","SIC"]
[null,null,null,null,null,null,"68116000","SIC"]
[null,null,null,null,null,null,"68116100","SIC"]
[null,null,null,null,null,null,"68116200","SIC"]
[null,null,null,null,null,null,"68116300","SIC"]
[null,null,null,null,null,null,"68116400","SIC"]
[null,null,null,null,null,null,"68116500","SIC"]
[null,null,null,null,null,null,"68116600","SIC"]
[null,null,null,null,null,null,"68116700","SIC"]
[null,null,null,null,null,null,"68116800","SIC"]
[null,null,null,null,null,null,"68116900","SIC"]
[null,null,null,null,null,null,"68117000","SIC"]
[null,null,null,null,null,null,"68117100","SIC"]
[null,null,null,null,null,null,"68117200","SIC"]
[null,null,null,null,null,null,"68117300","SIC"]
[null,null,null,null,null,null,"68117400","SIC"]
[null,null,null,null,null,null,"69110500","SIC"]
[null,null,null,null,null,null,"69111000","SIC"]
[null,null,null,null,null,null,"69111100","SIC"]
[null,null,null,null,null,null,"69111200","SIC"]
[null,null,null,null,null,null,"69111300","SIC"]
[null,null,null,null,null,null,"69111400","SIC"]
[null,null,null,null,null,null,"69111500","SIC"]
[null,null,null,null,null,null,"69111600","SIC"]
[null,null,null,null,null,null,"69111700","SIC"]
[null,null,null,null,null,null,"69111800","SIC"]
[null,null,null,null,null,null,"69111900","SIC"]
[null,null,null,null,null,null,"69311100","SIC"]
[null,null,null,null,null,null,"69311200","SIC"]
[null,null,null,null,null,null,"69311300","SIC"]
[null,null,null,null,null,null,"69311400","SIC"]
[null,null,null,null,null,null,"69311500","SIC"]
[null,null,null,null,null,null,"69311600","SIC"]
[null,null,null,null,null,null,"69311700","SIC"]
[null,null,null,null,null,null,"69510800","SIC"]
[null,null,null,null,null,null,"69510900","SIC"]
[null,null,null,null,null,null,"69511000","SIC"]
[null,null,null,null,null,null,"69511100","SIC"]
[null,null,null,null,null,null,"69511200","SIC"]
[null,null,null,null,null,null,"69511300","SIC"]
[null,null,null,null,null,null,"69511400","SIC"]
[null,null,null,null,null,null,"69511500","SIC"]
[null,null,null,null,null,null,"69610100","SIC"]
[null,null,null,null,null,null,"69610200","SIC"]
[null,null,null,null,null,null,"69610300","SIC"]
[null,null,null,null,null,null,"71000001","SIC"]
[null,null,null,null,null,null,"71000002","SIC"]
[null,null,null,null,null,null,"71000003","SIC"]
[null,null,null,null,null,null,"71000004","SIC"]
[null,null,null,null,null,null,"71000005","SIC"]
[null,null,null,null,null,null,"71000006","SIC"]
[null,null,null,null,null,null,"71000007","SIC"]
[null,null,null,null,null,null,"71000008","SIC"]
[null,null,null,null,null,null,"71000009","SIC"]
[null,null,null,null,null,null,"71000011","SIC"]
[null,null,null,null,null,null,"71000012","SIC"]
[null,null,null,null,null,null,"71000013","SIC"]
[null,null,null,null,null,null,"71000014","SIC"]
[null,null,null,null,null,null,"71000015","SIC"]
[null,null,null,null,null,null,"71000016","SIC"]
[null,null,null,null,null,null,"71000017","SIC"]
[null,null,null,null,null,null,"71000018","SIC"]
[null,null,null,null,null,null,"71000019","SIC"]
[null,null,null,null,null,null,"71000021","SIC"]
[null,null,null,null,null,null,"71000022","SIC"]
[null,null,null,null,null,null,"71000023","SIC"]
[null,null,null,null,null,null,"71000024","SIC"]
[null,null,null,null,null,null,"71000025","SIC"]
[null,null,null,null,null,null,"71000026","SIC"]
[null,null,null,null,null,null,"71000027","SIC"]
[null,null,null,null,null,null,"71000028","SIC"]
[null,null,null,null,null,null,"71000029","SIC"]
[null,null,null,null,null,null,"71000031","SIC"]
[null,null,null,null,null,null,"71000041","SIC"]
[null,null,null,null,null,null,"71000051","SIC"]
[null,null,null,null,null,null,"71000052","SIC"]
[null,null,null,null,null,null,"71000061","SIC"]
[null,null,null,null,null,null,"71000062","SIC"]
[null,null,null,null,null,null,"71000063","SIC"]
[null,null,null,null,null,null,"71000064","SIC"]
[null,null,null,null,null,null,"71000065","SIC"]
[null,null,null,null,null,null,"71000066","SIC"]
[null,null,null,null,null,null,"71000067","SIC"]
[null,null,null,null,null,null,"71000068","SIC"]
[null,null,null,null,null,null,"71000069","SIC"]
[null,null,null,null,null,null,"71000071","SIC"]
[null,null,null,null,null,null,"71000072","SIC"]
[null,null,null,null,null,null,"71000081","SIC"]
[null,null,null,null,null,null,"71000082","SIC"]
[null,null,null,null,null,null,"71000083","SIC"]
[null,null,null,null,null,null,"71000084","SIC"]
[null,null,null,null,null,null,"71000085","SIC"]
[null,null,null,null,null,null,"71000086","SIC"]
[null,null,null,null,null,null,"71000091","SIC"]
[null,null,null,null,null,null,"71000093","SIC"]
[null,null,null,null,null,null,"71000094","SIC"]
[null,null,null,null,null,null,"71000099","SIC"]
[null,null,null,null,null,null,"72000001","SIC"]
[null,null,null,null,null,null,"73000001","SIC"]
[null,null,null,null,null,null,"73000002","SIC"]
[null,null,null,null,null,null,"73000100","SIC"]
[null,null,null,null,null,null,"73000200","SIC"]
[null,null,null,null,null,null,"73000300","SIC"]
[null,null,null,null,null,null,"73000500","SIC"]
[null,null,null,null,null,null,"73000600","SIC"]
[null,null,null,null,null,null,"74000001","SIC"]
[null,null,null,null,null,null,"75000001","SIC"]
[null,null,null,null,null,null,"76000001","SIC"]
[null,null,null,null,null,null,"77000001","SIC"]
[null,null,null,null,null,null,"78000001","SIC"]
[null,null,null,null,null,null,"80112000","SIC"]
[null,null,null,null,null,null,"80112100","SIC"]
[null,null,null,null,null,null,"80112200","SIC"]
[null,null,null,null,null,null,"80112300","SIC"]
[null,null,null,null,null,null,"80112400","SIC"]
[null,null,null,null,null,null,"80112500","SIC"]
[null,null,null,null,null,null,"80112600","SIC"]
[null,null,null,null,null,null,"80310100","SIC"]
[null,null,null,null,null,null,"80410600","SIC"]
[null,null,null,null,null,null,"80410700","SIC"]
[null,null,null,null,null,null,"80410800","SIC"]
[null,null,null,null,null,null,"80410900","SIC"]
[null,null,null,null,null,null,"80510100","SIC"]
[null,null,null,null,null,null,"80510200","SIC"]
[null,null,null,null,null,null,"80510300","SIC"]
[null,null,null,null,null,null,"80510400","SIC"]
[null,null,null,null,null,null,"80510500","SIC"]
[null,null,null,null,null,null,"80510600","SIC"]
[null,null,null,null,null,null,"97000001","SIC"]
[null,null,null,null,null,null,"98000001","SIC"]
[null,null,null,null,null,null,"99000001","SIC"]
[null,null,null,null,null,null,"99000002","SIC"]
[null,null,null,null,null,null,"18000011","U18"]
[null,null,null,null,null,null,"99000001","U18"]
[null,null,null,null,null,null,"19000011","U19"]
[null,null,null,null,null,null,"19000031","U19"]
[null,null,null,null,null,null,"19000032","U19"]
[null,null,null,null,null,null,"19000035","U19"]
[null,null,null,null,null,null,"19000036","U19"]
[null,null,null,null,null,null,"99000001","U19"]
[null,null,null,null,null,null,"20000011","U20"]
[null,null,null,null,null,null,"20110200","U20"]
[null,null,null,null,null,null,"20110400","U20"]
[null,null,null,null,null,null,"20110500","U20"]
[null,null,null,null,null,null,"99000001","U20"]
[null,null,null,null,null,null,"21000011","U21"]
[null,null,null,null,null,null,"21000031","U21"]
[null,null,null,null,null,null,"21000041","U21"]
[null,null,null,null,null,null,"21000051","U21"]
[null,null,null,null,null,null,"21110100","U21"]
[null,null,null,null,null,null,"99000001","U21"]
[null,null,null,null,null,null,"22000011","U22"]
[null,null,null,null,null,null,"99000001","U22"]
[null,null,null,null,null,null,"23000011","U23"]
[null,null,null,null,null,null,"99000001","U23"]
[null,null,null,null,null,null,"02000048","UTB"]
[null,null,null,null,null,null,"13000021","UTB"]
[null,null,null,null,null,null,"13000041","UTB"]
[null,null,null,null,null,null,"14000031","UTB"]
[null,null,null,null,null,null,"14000061","UTB"]
[null,null,null,null,null,null,"14000082","UTB"]
[null,null,null,null,null,null,"99000001","UTB"]

{"sheet":"PLANO","index":2,"n_rows":35,"n_cols":10,"rows_kept":35,"cut":false,"hidden":true,"merged":[]}
[]
[]
[]
[]
[]
[]
[]
[]
[]
[]
[]
[]
[]
[]
[]
[]
[]
[]
[]
[]
[]
[]
[]
[]
[]
[]
[]
[]
[]
[]
[]
[]
[]
[]
[null,null,null,null,null,null,null,null,null,{"$f":"SUM(J2:J34)","v":0}]

{"sheet":"Hoja1","index":3,"n_rows":0,"n_cols":0,"rows_kept":0,"cut":false,"hidden":true,"merged":[]}